Cogmind - Beta 16 X2 @@@ ROGUE MODE // 2025.10.11 @ 17:04:07 Player: Plexion Result: Escaped singularity! Performance ------------- Evolutions (9) 4500 Regions Visited (34) 6800 Robots Destroyed (377) 1885 Value Destroyed (20884) 20884 Prototype IDs (371) 7420 Alien Tech Used (10) 2000 Bonus (53101) 53101 TOTAL SCORE: 96590 Bonus ------- High Alert Combat Kills 711 Follower Combat Kills 2238 Awakened Behemoth Slayer 1000 Network Hubs Disabled 800 Registered with UFD 300 Met Optimus in HQ 500 Met Imprinter 300 Met Zhirov 300 Built Enhanced Grunts 300 Met R17 at Cetus 500 Found Hidden Lab 3000 Used Core Reset Matrix 3000 Met R17 at Research 2000 Scanned by Researcher 500 Destroyed MAIN.C Guards 500 Met MAIN.C 5000 Destroyed MAIN.C Shell 5000 Destroyed MAIN.C 10000 Met Architect 300 Destroyed A8 300 Destroyed A6 400 Destroyed A5 500 Destroyed Architect 15000 Win 3000 Friendly Fire -2348 Cogmind --------- Core Integrity 841/1600 Matter 285/300 Energy 1287/1300 System Corruption 1% Temperature Cool (8) Movement Walking (100) Location Near Former Tau Ceti IV Parts ------- > --- POWER (3) -------- Zero-point Reactor Zero-point Reactor Concept Zero-point Core > --- PROPULSION (6) --- Experimental VSS Leg Experimental VSS Leg Experimental Armored Exoskeleton > --- UTILITY (13) ----- Concept Antigrav Storage Unit Concept Chromion Battery (fused) Advanced Melee Analysis Suite Concept Weapon Articulator Experimental Core Analyzer Experimental Armor Integrity Analyzer Femtoactuators Experimental Phase Shifter Experimental Powered Armor Experimental Powered Armor AEGIS Remote Shield > --- WEAPON (3) ------- Concept Plasma Driver Experimental Jetlance Experimental Jetlance > --- INVENTORY (25) --- Concept Zero-point Core Concept Zero-point Core High-density Centrium Leg High-density Centrium Leg Experimental Biometal Leg Experimental Armored Exoskeleton Concept Chromion Battery (800) Deep Structural Scanner Femtoactuators Experimental Force Field Subatomic Replicator Concept Navigation Harness Concept Disintegration Ray (38) Compact HERF Cannon Perforator Concept Blasthammer Sigix Broadsword Peak State ------------ > --- POWER ------------ Particle Reactor Hybrid Graviton Reactor Concept Zero-point Core > --- PROPULSION ------- Experimental VSS Leg Experimental VSS Leg Experimental Armored Exoskeleton > --- UTILITY ---------- Concept Antigrav Storage Unit Makeshift Sensor Array Improved Melee Analysis Suite Experimental Core Analyzer Femtoactuators Advanced Transmission Jammer Experimental Reaction Control System Advanced Phase Shifter Concept Cloak Mesh Concept Cloak Mesh Concept RG22 Armor Experimental Force Field Improved Hacking Suite > --- WEAPON ----------- Concept Plasma Driver Sigix Broadsword > --- INVENTORY -------- Concept Zero-point Core Concept Zero-point Core Experimental Armored Exoskeleton Experimental Cooling System Concept Chromion Battery Concept Chromion Battery Deep Structural Scanner Concept Weapon Articulator Femtoactuators Experimental Reaction Control System Transdimensional Reconstructor Subatomic Replicator Concept Navigation Harness Concept Disintegration Ray Concept Blasthammer CR-A16's Behemoth Slayer Experimental Jetlance Experimental Jetlance Thermal Lance [Rating: 280] Favorites ----------- Power Zero-point Reactor Engine Light Ion Engine Power Core Light Fission Core Reactor Zero-point Reactor Propulsion Light Treads Treads Light Treads Leg Thunder Leg Utility Improved Melee Analysis Suite Device Advanced Sensor Array Storage High-capacity Storage Unit Processor Improved Melee Analysis Suite Hackware Improved Hacking Suite Protection Layered Light Armor Plating Weapon Axe Energy Gun EM Shotgun Energy Cannon Neutron Cannon Ballistic Gun Assault Rifle Ballistic Cannon Magnetic Acceleration Cannon Launcher Heavy Missile Launcher Special Weapon Improved Remote Datajack Impact Weapon Shock Maul Slashing Weapon Axe Piercing Weapon Thermal Lance Build | -11 -10 -10 -9 -9 -8 -8 -8 -8 -6 -6 -6 -6 -5 -5 -5 -5 -5 -5 -5 -5 -4 -4 -4 -4 -3 -3 -3 -3 -2 -2 -2 -1 -1 -1 ------- Run | Yrd Mat Min Mat Min Mat Sto Rec Scr Fac Low Low Zio Pro Fac Was Fac Ext Cet Arc Hub Fac Upp Upp Zhi Pro Res Arm Lab Res Qua Frg Acc Com Ac0 Slots Evolved 18 | . . . 2 . 2 . . . 4 . . . . 2 . . . . . . 2 . . . . 2 . . 2 . . 2 . . Power 2 | . . . . . . . . . . . . . . . . . . . . . 1 . . . . 1 . . . . . . . . Propulsion 4 | . . . 1 . 1 . . . 1 . . . . . . . . . . . . . . . . . . . 1 . . . . . Utility 11 | . . . 1 . 1 . . . 3 . . . . 2 . . . . . . 1 . . . . 1 . . 1 . . 1 . . Weapon 1 | . . . . . . . . . . . . . . . . . . . . . . . . . . . . . . . . 1 . . Parts Attached 320 | 7 9 2 5 4 7 11 3 2 18 2 5 10 2 18 2 2 13 9 3 9 16 4 4 3 . 12 13 2 21 19 50 7 21 5 Power 43 | 1 1 . . . . 1 . . 1 . 2 . . 2 1 . 2 . 1 1 2 1 2 1 . 2 4 . 4 3 9 . 2 . Engine 4 | 1 1 . . . . . . . . . 1 . . 1 . . . . . . . . . . . . . . . . . . . . Core 8 | . . . . . . 1 . . 1 . 1 . . 1 . . 2 . . . 1 . . . . . . . . . 1 . . . Reactor 31 | . . . . . . . . . . . . . . . 1 . . . 1 1 1 1 2 1 . 2 4 . 4 3 8 . 2 . Propulsion 62 | 2 2 . 1 . 4 5 3 . 7 . 1 . 1 5 . . 4 5 . 2 3 . . 2 . . 1 . 2 4 8 . . . Treads 21 | 2 2 . 1 . 4 5 3 . 2 . . . . . . . . . . . . . . . . . . . . . 2 . . . Leg 41 | . . . . . . . . . 5 . 1 . 1 5 . . 4 5 . 2 3 . . 2 . . 1 . 2 4 6 . . . Wheel . | . . . . . . . . . . . . . . . . . . . . . . . . . . . . . . . . . . . Hover . | . . . . . . . . . . . . . . . . . . . . . . . . . . . . . . . . . . . Flight . | . . . . . . . . . . . . . . . . . . . . . . . . . . . . . . . . . . . Utility 163 | 2 3 1 2 1 3 2 . 1 9 2 1 8 1 10 . 1 5 3 1 5 10 1 . . . 7 6 1 13 9 28 7 17 3 Device 90 | 1 . 1 . 1 1 1 . . 1 2 . 2 . 3 . 1 1 . 1 3 5 1 . . . 7 5 . 10 7 19 6 9 2 Storage 6 | 1 2 . . . . . . . . . . . . . . . . . . . . . . . . . . . . . 3 . . . Processor 17 | . . . . . 1 . . . 2 . . 5 . 1 . . 1 . . . . . . . . . . . . . 2 . 5 . Hackware 14 | . . . . . . . . . 4 . . . 1 3 . . . . . . 4 . . . . . 1 1 . . . . . . Protection 36 | . 1 . 2 . 1 1 . 1 2 . 1 1 . 3 . . 3 3 . 2 1 . . . . . . . 3 2 4 1 3 1 Artifact . | . . . . . . . . . . . . . . . . . . . . . . . . . . . . . . . . . . . Weapon 52 | 2 3 1 2 3 . 3 . 1 1 . 1 2 . 1 1 1 2 1 1 1 1 2 2 . . 3 2 1 2 3 5 . 2 2 Energy Gun 9 | 1 3 1 . . . . . . . . . . . . 1 . . . . . . . . . . . . . . . 2 . 1 . Energy Cannon 10 | . . . . . . 1 . . . . . . . . . . 1 1 . . 1 1 . . . . 1 . 2 . 1 . . 1 Ballistic Gun 1 | 1 . . . . . . . . . . . . . . . . . . . . . . . . . . . . . . . . . . Ballistic Cannon 3 | . . . . . . . . . 1 . . . . . . . . . 1 . . . . . . . . . . . . . . 1 Launcher 7 | . . . . 3 . . . . . . . 1 . 1 . . . . . . . . 1 . . . 1 . . . . . . . Special Weapon 2 | . . . . . . . . . . . . . . . . . . . . 1 . . . . . 1 . . . . . . . . Impact Weapon 4 | . . . . . . 1 . . . . . . . . . . . . . . . . 1 . . . . . . 1 1 . . . Slashing Weapon 9 | . . . 2 . . 1 . 1 . . 1 1 . . . . 1 . . . . . . . . 1 . . . 1 . . . . Piercing Weapon 7 | . . . . . . . . . . . . . . . . 1 . . . . . 1 . . . 1 . 1 . 1 1 . 1 . Special Melee Weapon . | . . . . . . . . . . . . . . . . . . . . . . . . . . . . . . . . . . . Unidentified Prototypes 56 | . . . . 1 . 2 . . . . . 5 . 1 . 1 . 2 . 3 2 . . 3 . 2 3 3 3 3 19 . 3 . Parts Lost 84 | . 5 . 1 1 . 1 1 . 6 . 3 . . 9 . . 7 3 1 2 1 . . . . 2 2 . 10 8 14 1 . 6 Power 14 | . 1 . . . . 1 . . 1 . 1 . . . . . 1 . . . 1 . . . . 1 . . 2 2 3 . . . Propulsion 18 | . 2 . . . . . 1 . 4 . 1 . . 3 . . 1 2 . . . . . . . . . . 1 1 2 . . . Utility 39 | . . . . 1 . . . . 1 . 1 . . 4 . . 4 1 . 1 . . . . . 1 1 . 6 4 8 1 . 5 Weapon 13 | . 2 . 1 . . . . . . . . . . 2 . . 1 . 1 1 . . . . . . 1 . 1 1 1 . . 1 Highest Loss Streak 8 | . 3 . 1 1 . 1 1 . 3 . 2 . . 3 . . 3 2 1 2 1 . . . . 2 1 . 8 7 5 1 . 2 To Critical Strikes 1 | . . . . . . . . . . . . . . . . . . 1 . . . . . . . . . . . . . . . . Average Backups 15 | 2 9 12 16 18 18 19 19 18 17 19 18 18 19 16 13 13 12 12 12 14 14 14 14 13 14 14 16 3 17 16 17 20 20 18 Power . | . . . . . . . . . . 1 . . . . . . . . . . . . . . . . . . . . 2 2 2 2 Propulsion 2 | 1 3 2 6 8 5 4 4 4 1 . . . . . 1 1 1 1 1 1 2 1 1 1 2 1 2 . 1 1 2 1 2 3 Utility 7 | . 3 5 3 4 6 10 11 10 8 11 10 10 12 9 6 6 5 4 5 7 5 6 6 6 6 6 7 1 8 6 5 9 9 5 Weapon 4 | . 1 4 5 6 6 4 4 3 4 5 5 6 6 5 4 5 5 5 4 5 5 6 6 5 5 5 4 . 4 4 4 5 5 6 Tool/Special . | . . . . . . . . . . . . . . . . . . . . . . . . . . . . . . . . . . . Unused Backups 55 | . 4 . 1 . 5 3 . 3 5 . 2 3 . 1 . . . 2 . . . . 1 . . 2 2 3 1 4 4 . . 9 Power 6 | . . . . . . . . . . . 1 1 . . . . . 1 . . . . . . . . . . . . 1 . . 2 Propulsion 18 | . 3 . . . 3 . . . 4 . . . . 1 . . . . . . . . . . . . 1 1 . 1 . . . 4 Utility 19 | . . . . . 1 1 . 1 1 . 1 1 . . . . . 1 . . . . 1 . . 1 1 2 1 2 2 . . 2 Weapon 6 | . 1 . 1 . 1 2 . . . . . . . . . . . . . . . . . . . . . . . . 1 . . . Tool/Special 6 | . . . . . . . . 2 . . . 1 . . . . . . . . . . . . . 1 . . . 1 . . . 1 Average Slot Usage (%) 90 | . 99 100 99 99 97 99 99 100 95 100 95 99 100 98 99 99 97 99 99 96 99 98 95 99 100 94 82 41 79 82 84 83 83 84 Engine 1 | . 13 14 11 11 9 7 . . . . . . . . . . . . . . . . . . . . . . . . . . . . Core 2 | . . . . . . . 9 9 5 6 5 6 6 4 . . 3 5 1 . . 4 . . . . . . . . . 4 4 4 Reactor 4 | . . . . . . . . . . . . . . . 4 5 1 . 3 5 9 5 10 10 10 13 13 . 12 10 12 8 8 8 Treads 9 | . 28 28 32 33 36 36 35 36 15 . . . . . . . . . . . . . . . . . . . . . 2 . . . Leg 14 | . . . . . . . . . 13 33 28 33 33 28 29 29 28 28 29 29 26 26 26 26 26 23 13 9 12 13 11 12 12 11 Device 9 | . 7 1 4 10 9 6 . . 8 6 5 4 5 6 5 6 5 5 6 7 8 10 10 10 10 13 13 . 12 20 24 31 24 21 Storage 6 | . 14 14 11 11 9 9 9 9 6 6 6 6 6 5 5 5 5 5 5 5 5 5 5 5 5 4 4 . 4 4 6 4 7 8 Processor 11 | . . . . . 5 9 9 8 7 13 13 15 20 21 23 23 22 23 23 22 15 15 15 15 15 14 14 14 12 8 10 8 9 12 Hackware 5 | . . . . . . . . . 12 13 13 12 6 10 11 11 8 . . . 12 10 10 10 10 9 9 9 9 8 4 4 . . Protection 8 | . 6 12 17 11 9 11 18 18 9 6 6 6 6 6 4 3 5 16 16 11 9 10 10 9 10 4 4 . 7 7 2 4 10 10 Energy Gun 2 | . 20 28 6 . . . . . . . . . . . 1 . . . . . . . . . . . . . . . . . 1 . Slashing Weapon 6 | . . . 15 21 18 17 18 17 13 11 13 13 7 5 3 2 2 5 5 5 3 3 1 3 . 1 . . . . . 3 4 1 Piercing Weapon 1 | . . . . . . . . . . . . . . . . 2 4 . 4 1 4 4 1 5 5 1 2 4 3 2 6 1 2 5 Peak Build Rating 280 | 7 11 11 17 29 28 33 33 35 68 72 74 89 87 105 110 112 111 114 114 140 154 159 159 152 152 171 170 164 190 203 254 280 279 280 Average Rating 114 | 4 8 10 15 17 25 29 32 32 52 70 68 77 86 95 109 109 105 103 112 124 141 146 152 146 148 161 161 86 178 187 208 274 273 269 On Entrance 106 | . 7 9 11 17 19 28 33 33 35 66 70 74 85 86 105 110 111 96 112 114 124 145 159 146 150 148 163 159 164 177 184 251 274 277 Avg Prop Armor Cover (%) . | . . . . . . . . . . . . . . . . . . . . 1 . . . . . . . 35 . . 1 . . . Naked Turns . | . . . . . . . . . . . . . . . . . . . . . . . . . . . . . . . . . . . Heaviest Build 153 | 15 54 52 55 53 54 59 59 63 77 84 76 82 82 92 73 72 81 86 86 117 108 111 114 100 99 124 132 113 152 152 142 126 136 153 Greatest Support 180 | 40 40 40 60 60 80 80 80 80 95 95 96 96 96 106 106 106 106 114 114 144 146 136 136 138 138 138 138 108 150 173 180 152 152 152 Greatest Overweight (x) 2 | . 1 1 . . . . . . 1 . . . . . . . . 1 . 1 . . . . . . 1 1 2 2 . . 2 2 Average Overweight (x) . | . . 1 . . . . . . . . . . . . . . . . . . . . . . . . . . . . . . . . Largest Inventory Capacity 25 | 8 20 20 20 20 20 20 20 20 20 20 20 20 20 20 20 20 20 20 20 20 20 20 20 20 20 20 20 20 20 20 25 25 25 25 Average Capacity 19 | 7 14 20 20 20 20 20 20 20 20 20 20 20 20 20 20 20 20 20 20 20 20 20 20 20 20 20 20 6 20 20 22 25 25 25 Most Carried 25 | 4 16 14 20 20 20 20 20 20 20 20 20 20 20 20 20 20 20 20 20 20 20 20 20 20 20 20 20 20 20 20 25 25 25 25 Average Carried 18 | 2 9 12 16 19 19 19 20 19 18 20 19 19 20 17 19 20 19 19 19 19 19 19 19 19 20 19 18 3 19 18 22 24 24 23 Final Capacity 25 | 8 20 20 20 20 20 20 20 20 20 20 20 20 20 20 20 20 20 20 20 20 20 20 20 20 20 20 20 20 20 20 25 25 25 25 Final Carried 25 | 4 11 13 18 20 20 20 20 20 20 20 20 20 20 16 20 20 20 20 20 20 19 20 20 20 20 19 20 20 14 19 25 25 25 23 Class Distribution -------------------- 24% | Scavenger-Gladiator 21% | Scavenger-Mutant 13% | Mutant 12% | Hacker-Gladiator 11% | Hacker-Mutant 10% | Commander-Gladiator Dominant Class ---------------- Mutant | -10/Materials Mutant | -10/Mines Mutant | -9/Materials Mutant | -9/Mines Scavenger-Gladiator | -8/Materials Scavenger-Gladiator | -8/Storage Commander-Gladiator | -8/Recycling Commander-Gladiator | -8/Scraptown Scavenger-Mutant | -6/Factory Hacker-Gladiator | -6/Lower Caves Hacker-Gladiator | -6/Lower Caves Hacker-Gladiator | -6/Zion Derelict-Mutant | -5/Proximity Caves Derelict-Mutant | -5/Factory Hacker-Gladiator | -5/Waste Hacker-Gladiator | -5/Factory Hacker-Gladiator | -5/Extension Scavenger-Mutant | -5/Cetus Scavenger-Gladiator | -5/Archives Scavenger-Mutant | -5/Hub_04(d) Scavenger-Gladiator | -4/Factory Scavenger-Gladiator | -4/Upper Caves Scavenger-Mutant | -4/Upper Caves Scavenger-Gladiator | -4/Zhirov Scavenger-Mutant | -3/Proximity Caves Scavenger-Mutant | -3/Research Scavenger-Mutant | -3/Armory Hacker-Mutant | -3/Lab Scavenger-Mutant | -2/Research Scavenger-Mutant | -2/Quarantine Scavenger-Gladiator | -2/Protoforge Alien-Gladiator | -1/Access Scavenger-Gladiator | -1/Command Scavenger-Gladiator | -1/Access_0 Resources | -11 -10 -10 -9 -9 -8 -8 -8 -8 -6 -6 -6 -6 -5 -5 -5 -5 -5 -5 -5 -5 -4 -4 -4 -4 -3 -3 -3 -3 -2 -2 -2 -1 -1 -1 ----------- Run | Yrd Mat Min Mat Min Mat Sto Rec Scr Fac Low Low Zio Pro Fac Was Fac Ext Cet Arc Hub Fac Upp Upp Zhi Pro Res Arm Lab Res Qua Frg Acc Com Ac0 Matter Collected 9747 | 288 225 50 85 190 60 229 46 40 410 158 107 145 71 364 96 . 415 133 82 290 454 174 250 . 124 520 478 . 761 653 1262 342 563 682 Remotely . | . . . . . . . . . . . . . . . . . . . . . . . . . . . . . . . . . . . Salvage Created 24515 | 62 918 221 400 162 145 1090 546 296 950 98 489 . 15 650 375 . 619 147 178 1063 631 328 214 . 67 578 914 . 2353 1310 2982 1043 4151 1520 Parts 1123 | 7 52 8 26 18 12 52 21 16 48 4 13 . 2 27 5 . 28 9 18 56 35 16 6 . . 19 39 . 93 37 157 48 172 79 Haulers Intercepted 18 | . 2 . 1 . 2 4 . . . . . . . 1 . . 1 . . 2 1 . . . . . . . 2 1 . 1 . . Recyclers Shooed 6 | . 1 . . . . 1 . . 3 . . . . . . . . . . . 1 . . . . . . . . . . . . . Parts Field Recycled . | . . . . . . . . . . . . . . . . . . . . . . . . . . . . . . . . . . . Retrieved Matter . | . . . . . . . . . . . . . . . . . . . . . . . . . . . . . . . . . . . Parts Self-Destructed 22 | . . . . . . . . . . 4 6 2 . . . . . . . . . 10 . . . . . . . . . . . . Prevented 13 | . . . . . . . . . . . . . . . . . . . . . . 8 5 . . . . . . . . . . . Parts Restored 7 | . . . . . . . . . . . . 1 . . . . . . . . . . . . . . . . . . 6 . . . Broken 1 | . . . . . . . . . . . . 1 . . . . . . . . . . . . . . . . . . . . . . Faulty 6 | . . . . . . . . . . . . . . . . . . . . . . . . . . . . . . . 6 . . . Kills | -11 -10 -10 -9 -9 -8 -8 -8 -8 -6 -6 -6 -6 -5 -5 -5 -5 -5 -5 -5 -5 -4 -4 -4 -4 -3 -3 -3 -3 -2 -2 -2 -1 -1 -1 ------- Run | Yrd Mat Min Mat Min Mat Sto Rec Scr Fac Low Low Zio Pro Fac Was Fac Ext Cet Arc Hub Fac Upp Upp Zhi Pro Res Arm Lab Res Qua Frg Acc Com Ac0 Combat Hostiles Destroyed 283 | . 18 5 7 12 1 19 8 4 12 3 1 . . 13 . . 6 1 . 6 8 3 7 . 3 7 20 . 19 13 47 7 18 15 Melee 134 | . . . 6 . 1 11 8 4 11 1 1 . . 7 . . 6 . . 2 5 . . . . . . . 14 10 27 2 13 5 Guns 22 | . 17 4 1 . . . . . . . . . . . . . . . . . . . . . . . . . . . . . . . Cannons 38 | . . . . . . . . . . . . . . . . . . . . 2 2 2 2 . 1 3 8 . 3 2 5 1 . 7 AOE 48 | . . . . 12 . 8 . . 1 2 . . . 6 . . . . . 1 . . 4 . 2 . 8 . . . 4 . . . Classes Destroyed 34 | 1 6 1 2 . . 1 1 4 3 . 1 . 1 . . . . . . 2 . 1 . . . 2 1 . . 1 6 . . . Worker 24 | . 1 . 2 . . . . . . . . . . 2 . . . . . 5 1 . . . . . . . 7 . . 2 4 . Builder 10 | . . . . . . 1 . . . . . . . 1 . . 3 . . 3 . . . . . 1 . . . . . 1 . . Tunneler 6 | 3 . . . . . . . . 2 . . . . . . . . . . 1 . . . . . . . . . . . . . . Hauler 18 | . 2 . 1 . 2 4 . . . . . . . 1 . . 1 . . 2 1 . . . . . . . 2 1 . 1 . . Recycler 19 | . . . 1 2 . 3 2 . 2 . . . . . . . . . . 3 . . . . . . . . 3 . . 1 2 . Operator 11 | . 3 . . . . . . . . . . . . 1 . . 1 . 5 . . . . . . 1 . . . . . . . . Drone 1 | . . . . . . . . . . . . . . . . . . . . . . . . . . . . . . . 1 . . . Watcher 4 | . 2 . . . . 1 . . . . . . . 1 . . . . . . . . . . . . . . . . . . . . Swarmer 49 | . 3 . 3 12 . 8 . . 1 2 . . . . . . . . . . . . 5 . 2 . 8 . . . . . 5 . Saboteur 1 | . . . . . . . . . . . . . . . . . . . . . . . . . . . 1 . . . . . . . Grunt 66 | . 15 4 3 . 1 5 . . 1 . . . . 9 . . 1 . . 1 3 2 1 . . 3 4 . 10 3 . . . . Brawler 2 | . . . . . . . . . 1 . . . . . . . . . . . . . . . . . . . . 1 . . . . Duelist 2 | . . . . . . . . . 2 . . . . . . . . . . . . . . . . . . . . . . . . . Protector 2 | . . . . . . . . . . . . . . . . . . . . 1 . . . . . . . . . . . . 1 . Researcher 2 | . . . . . . . . . . . . . . . . . . . . . . . . . . . . . . . 2 . . . Sentry 41 | . . . 1 . . 6 5 . 4 1 . . . . . . 5 . . . 1 . 1 . 1 2 1 . 2 . 10 1 . . Demolisher 2 | . . 1 . . . . 1 . . . . . . . . . . . . . . . . . . . . . . . . . . . Specialist 3 | . . . . . . . . . 1 . . . . . . . . . . . . . . . . . 2 . . . . . . . Hunter 10 | . . . . . . . . . . . . . . . . . . . . . . . . . . . 2 . . 2 2 4 . . Programmer 43 | . . . . . . . 2 . 2 . 1 . . 4 . . . . . 2 4 . . . . . 2 . 5 4 11 . 6 . Q-Series 1 | . . . . . . . . . . . . . . . . . . . . . . . . . . . . . . . 1 . . . Behemoth 3 | . . . . . . . . . . . . . . . . . . . . . . 1 . . . . . . . . . 2 . . Cetus Guard 1 | . . . . . . . . . . . . . . . . . . 1 . . . . . . . . . . . . . . . . M Guard 2 | . . . . . . . . . . . . . . . . . . . . . . . . . . . . . . . . . 2 . Enhanced Grunt 9 | . . . . . . . . . . . . . . . . . . . . . . . . . . . . . . . . . . 9 Enhanced Hunter 2 | . . . . . . . . . . . . . . . . . . . . . . . . . . . . . . . . . . 2 Lightning 2 | . . . . . . . . . . . . . . . . . . . . 2 . . . . . . . . . . . . . . CL-0N3 Special 2 | . . . . . . . . . . . . . . . . . . . . . . . . . . . . . 1 1 . . . . Hotshot 6 | . . . . . . . . . . . . . . . . . . . . . . . . . . . . . . . 6 . . . Decapitator 12 | . . . . . . . . . . . . . . . . . . . . . . . . . . . . . . . 12 . . . Immortal 1 | . . . . . . . . . . . . . . . . . . . . . . . . . . . . . . . 1 . . . Combat Programmer 4 | . . . . . . . . . . . . . . . . . . . . . . . . . . . . . 1 1 . . 2 . Striker 1 | . . . . . . . . . . . . . . . . . . . . . . . . . . 1 . . . . . . . . Executioner 1 | . . . . . . . . . . . . . . . . . . . . . . . . . . 1 . . . . . . . . Alpha 7 2 | . . . . . . . . . . . . . . . . . . . . . . . . . . . . . . . 2 . . . Fortress 1 | . . . . . . . . . . . . . . . . . . . . . . . . . . . . . . 1 . . . . V-Series 1 | . . . . . . . . . . . . . . . . . . . . . . . . . . . . . . . 1 . . . Federalist 1 | . . . . . . . . 1 . . . . . . . . . . . . . . . . . . . . . . . . . . Ranger 1 | . . . . . . . . 1 . . . . . . . . . . . . . . . . . . . . . . . . . . Scientist 2 | . . . . . . . . 2 . . . . . . . . . . . . . . . . . . . . . . . . . . Scrapper 2 | . . . . . . . . 2 . . . . . . . . . . . . . . . . . . . . . . . . . . Decomposer 1 | . . . . . . . . . . . 1 . . . . . . . . . . . . . . . . . . . . . . . Samaritan 4 | . . . . . . . . . . . 3 . . . . . . . . . . 1 . . . . . . . . . . . . Tinkerer 1 | . . . . . . . . . . . . . 1 . . . . . . . . . . . . . . . . . . . . . Best Kill Streak 13 | 3 4 1 4 5 1 5 3 2 4 2 1 . . 9 . . 2 1 4 13 3 1 4 . 3 3 8 . 3 3 4 2 10 3 Combat Bots Only 8 | . 3 1 3 4 1 4 3 2 3 2 1 . . 6 . . 2 1 . 2 3 1 4 . 3 3 8 . 3 3 4 2 8 3 Max Kills in Single Turn 10 | 1 2 1 1 3 1 4 1 1 1 2 1 . 1 2 . . 1 1 1 10 2 1 4 . 1 1 3 . 1 1 2 1 1 2 Gunslinging . | . . . . . . . . . . . . . . . . . . . . . . . . . . . . . . . . . . . Exploded 4 | . . . . 3 . 4 . . 1 2 . . . 2 . . . . . 1 . . 4 . 1 . 3 . . . 2 . . . Melee 1 | . . . 1 . 1 1 1 1 1 1 1 . . 1 . . 1 . . 1 1 . . . . . . . 1 1 1 1 1 1 Uniques/NPCs Destroyed 7 | . . . . . . . . . . . . . . . . . . 1 . . . . . . . . . . . . . . 2 4 A7 (-5/Cetus) MAIN.C Shell (-1/Command) MAIN.C (-1/Command) A8 (-1/Access_0) A6 (-1/Access_0) A5 (-1/Access_0) Architect (-1/Access_0) Combat | -11 -10 -10 -9 -9 -8 -8 -8 -8 -6 -6 -6 -6 -5 -5 -5 -5 -5 -5 -5 -5 -4 -4 -4 -4 -3 -3 -3 -3 -2 -2 -2 -1 -1 -1 -------- Run | Yrd Mat Min Mat Min Mat Sto Rec Scr Fac Low Low Zio Pro Fac Was Fac Ext Cet Arc Hub Fac Upp Upp Zhi Pro Res Arm Lab Res Qua Frg Acc Com Ac0 Hostile Shots Fired 2796 | . 93 17 28 24 4 57 32 59 147 42 16 . . 90 . . 118 27 2 140 111 36 6 . 13 32 158 . 190 213 285 94 68 694 Missed 1067 | . 21 6 9 7 1 17 4 10 47 19 4 . . 24 . . 35 9 . 37 14 25 5 . 8 8 69 . 47 57 80 51 46 407 Hits 1729 | . 72 11 19 17 3 40 28 49 100 23 12 . . 66 . . 83 18 2 103 97 11 1 . 5 24 89 . 143 156 205 43 22 287 Melee 46 | . . . . . . . . . 4 . . . . . . . . . . . . . . . . . 3 . . 4 31 . . 4 Projectile 1683 | . 72 11 19 17 3 40 28 49 96 23 12 . . 66 . . 83 18 2 103 97 11 1 . 5 24 86 . 143 152 174 43 22 283 AOE 12 | . . 1 . . . . . . . . . . . . . . . . . 3 . . . . . . 1 . . . 6 1 . . Critical Strikes 141 | . 2 . 1 . 1 1 . 3 5 . . . . 7 . . 6 3 . 13 16 1 . . . 2 6 . 7 10 30 4 3 20 Actively Blocked 32 | . . . . . . . . . . . . . . . . . . . . . 14 . . . . . 1 . 1 10 3 . 1 2 Part Disruptions 20 | . . . . . . . . . 1 . . . . . . . . . . 3 1 . . . . . 1 . 4 3 1 . 2 4 Actively Blocked 3 | . . . . . . . . . . . . . . . . . . . . . . . . . . . . . . . 1 . . 2 Damage Taken 32369 | . 827 172 218 261 46 619 423 684 1289 118 185 . . 1549 . . 1775 403 49 1321 1256 353 21 . 124 639 1200 . 3688 4138 5239 518 601 4653 Core 2736 | . 166 16 28 36 15 13 70 69 103 9 48 . . 118 . . 217 . . 72 186 102 . . 20 63 45 . 178 343 271 21 54 473 Absorbed by Shields 8385 | . . . . . . . . . . 73 . . . . . . 193 103 . . 283 . . . . . 95 . 494 694 830 503 597 4520 Redirected to Shielding 413 | . . . . . . . . . . . . . . . . . . . . . . . . . . . . . . . 194 . 57 162 Ignored by Resistances 5546 | . . . . . . . . . 86 34 . . . 8 . . 87 . . 2058 474 . . . . . 574 . 739 1153 302 31 . . Regen/Repaired (Parts) 4814 | . . . 118 . . . . 519 127 . . . . . . . . . . . . . . . . 1453 563 . 271 646 59 215 387 456 Core Remaining (%) 68 | 100 . 27 . 84 . . . 69 . . . . 81 . . . . . . 59 . . . . 73 . . 100 . . 41 . . 52 Volleys Fired 748 | 6 80 13 7 7 . 6 . . 3 13 . . 2 9 18 . 17 14 1 35 7 7 9 . 18 44 53 . 27 36 50 21 169 76 Largest 2 | 2 2 2 2 1 . 1 . . 1 1 . . 1 1 1 . 1 1 1 1 1 1 1 . 1 1 1 . 1 1 2 1 1 2 Hottest 240 | 70 90 90 90 33 . 68 . . 44 44 . . 44 44 81 . 94 94 48 90 90 90 90 . 90 90 120 . 120 120 200 140 140 240 Shots Fired 850 | 12 147 26 12 7 . 6 . . 3 13 . . 2 9 18 . 17 14 1 35 7 7 9 . 18 44 53 . 28 36 58 21 169 78 Gun 400 | 12 147 26 12 . . . . . . . . . . . 18 . . . . . . . . . . . . . . . 25 . 160 . Cannon 406 | . . . . . . 2 . . 1 12 . . 2 2 . . 12 14 1 33 7 7 7 . 15 42 48 . 28 36 29 21 9 78 Launcher 39 | . . . . 7 . 4 . . 2 1 . . . 7 . . 5 . . . . . 2 . 3 . 4 . . . 4 . . . Special 5 | . . . . . . . . . . . . . . . . . . . . 2 . . . . . 2 1 . . . . . . . Kinetic 108 | 6 45 . . . . . . . 1 12 . . 2 2 . . 2 . 1 29 . . . . . . . . . . . . . 8 Thermal 494 | 6 57 . . . . 2 . . . . . . . . 18 . . . . 4 3 4 2 . 15 20 25 . 21 36 29 21 166 65 Explosive 39 | . . . . 7 . 4 . . 2 1 . . . 7 . . 5 . . . . . 2 . 3 . 4 . . . 4 . . . Electromagnetic 176 | . 45 26 12 . . . . . . . . . . . . . 10 14 . . 4 3 5 . . 22 23 . 7 . . . . 5 Entropic 28 | . . . . . . . . . . . . . . . . . . . . . . . . . . . . . . . 25 . 3 . Robot Hit Streak 46 | 7 19 11 6 . . . . . . . . . . 3 7 . 11 6 . 5 4 2 5 . 3 5 12 . 15 10 17 2 46 14 Robot Miss Streak 8 | 1 5 2 3 . . 2 . . . . . . . 1 1 . 2 2 1 8 1 . 1 . 1 1 2 . 3 2 3 3 4 4 Penetration Max 1 | . . . . . . . . . . . . . . . . . . . . 1 1 . . . . . . . . . . . . 1 Secondary Targets . | . . . . . . . . . . . . . . . . . . . . . . . . . . . . . . . . . . . Capacitor 111 | . . . . . . . . . . . . . . . . . . . . . . . . . . 42 48 . 21 . . . . . Shots Hit Robots 1195 | 8 94 22 26 1 6 55 21 19 40 3 17 . 1 40 15 1 53 21 8 20 35 12 5 . 3 13 31 . 83 53 125 21 204 139 Core Hits 623 | 4 48 13 10 12 3 22 9 5 23 3 7 . 1 33 2 . 26 9 5 28 16 4 5 . 7 8 27 . 46 25 63 7 77 75 Critical Kills 28 | . 1 . . . . . . . . . . . . . . . . . . 2 . . . . . . . . 1 1 11 1 3 8 Critical Parts Destroyed 9 | . . . . . . . . . . . . . . . . . . . . 1 . . . . . . . . . . 1 . . 7 Critical Strikes 166 | . 6 . 1 . . 5 3 1 7 . 1 . . 6 5 . 3 2 2 4 2 . . . . 4 7 . 13 1 24 1 27 41 Burn 17 | . 5 . . . . . . . . . . . . . 5 . . . . . . . . . . . . . . . . . 7 . Meltdown 18 | . . . . . . . . . . . . . . . . . . . . . . . . . . . . . 1 1 11 1 3 1 Destroy 18 | . 1 . . . . . . . . . . . . . . . . . . 3 . . . . . . . . . . . . . 14 Corrupt 15 | . . . . . . . . . . . . . . . . . . 1 . . 1 . . . . 4 7 . 2 . . . . . Smash 2 | . . . . . . . . . . . . . . . . . . . . . . . . . . . . . . . 2 . . . Sever 24 | . . . 1 . . 5 3 1 7 . 1 . . 6 . . . . . . . . . . . . . . . . . . . . Impale 72 | . . . . . . . . . . . . . . . . . 3 1 2 1 1 . . . . . . . 10 . 11 . 17 26 Melee Attacks 1115 | . . . 26 5 8 77 21 25 68 14 28 . 12 51 1 6 53 10 8 24 59 10 2 . 13 22 14 23 81 61 161 33 104 95 Kinetic 1 | . . . . . . . . . . . . . . . . . . . . . . . . . . . . . . 1 . . . . Thermal 204 | . . . . . . . . . . . . . . . . . . . . . . . . . . . . . . 13 111 6 40 34 Impact 16 | . . . . . . . . . . . . . . 4 . 1 6 . . . . . . . . . . . . . 3 1 1 . Slashing 486 | . . . 26 5 8 77 21 25 68 14 28 . 12 47 1 1 4 1 2 12 12 1 2 . . 16 . . . 36 . 22 35 10 Piercing 408 | . . . . . . . . . . . . . . . . 4 43 9 6 12 47 9 . . 13 6 14 23 81 11 47 4 28 51 Sneak Attacks 108 | . . . 5 1 2 15 8 2 6 . 5 . 1 3 . 1 6 10 8 2 3 1 . . . 1 . . 15 1 2 5 5 . Combat Hostiles 5 | . . . . . . 2 . . . . . . . . . . 1 . . . . . . . . . . . 1 . . . 1 . Follow-up Attacks 76 | . . . 3 . . 9 5 3 6 . . . . 2 . . 4 1 2 2 5 2 . . . . . . . . 11 . 4 17 Damage Inflicted 63367 | 141 1337 348 867 888 309 3113 1078 722 1823 239 1006 . 66 3150 463 75 2406 920 640 2024 1569 510 634 . 384 1049 2696 . 4482 3302 9076 1815 8077 8158 Guns 6818 | 141 1321 302 102 . . . . . . . . . . . 386 . . . . . . . . . . . . . . . 492 . 4074 . Cannons 11225 | . . . . . . . . . . . . . . . . . 191 425 . 236 349 116 296 . 39 918 1586 . 875 1133 1124 667 78 3192 Explosions 7570 | . . . . 825 . 518 . . 187 126 . . . 1460 . . 514 . . 1327 . . 338 . 345 . 1110 . . . 820 . . . Melee 37651 | . . . 765 63 309 2595 1078 722 1631 113 1006 . 66 1690 77 75 1701 495 640 433 1220 394 . . . 131 . . 3599 2169 6640 1148 3925 4966 Ramming 103 | . 16 46 . . . . . . 5 . . . . . . . . . . 28 . . . . . . . . 8 . . . . . Kinetic 687 | 66 351 . . . . . . . . . . . . . . . . . . 165 . . . . . . . . . 25 . . . 80 Thermal 22524 | 75 488 . . . . . . . . . . . . 204 386 . . . . 71 . . 40 . 39 75 740 . 680 1687 6391 1068 5610 4970 Explosive 5729 | . . . . 825 . 518 . . 187 126 . . . 1256 . . 514 . . . . . 338 . 345 . 931 . . . 689 . . . Electromagnetic 5753 | . 482 302 102 . . . . . . . . . . . . . 191 425 . 1327 349 116 256 . . 843 1025 . 195 . . . . 140 Impact 532 | . . . . . . . . . . . . . . 142 . . 89 . . . . . . . . . . . . . 301 . . . Slashing 14684 | . . . 765 63 309 2595 1078 722 1631 113 1006 . 66 1548 77 75 72 55 192 187 182 86 . . . 131 . . . 1590 . 747 719 675 Piercing 12714 | . . . . . . . . . . . . . . . . . 1540 440 448 246 1038 308 . . . . . . 3599 . 1203 . 1599 2293 Entropic 641 | . . . . . . . . . . . . . . . . . . . . . . . . . . . . . . . 492 . 149 . Highest Corruption 19 | . . . . . . . 1 . 2 2 4 4 . 5 4 . 1 1 1 5 1 . . . . . . . 10 10 19 . 4 1 Average Corruption 3 | . . . . . . . 1 . 1 2 3 4 . 4 2 . 1 1 1 1 1 . . . . . . . 4 6 8 . 3 1 Corruption Purged 11 | . . . . . . . . . . . . . . 1 4 . . . 1 . 1 . . . . . . . . . . . 4 . Corruption Blocked . | . . . . . . . . . . . . . . . . . . . . . . . . . . . . . . . . . . . Effects 232 | . . . . . . . 6 . 16 13 27 . . 12 2 . 6 4 . 3 3 . . . . . . . 16 39 63 . 21 1 Message Errors 62 | . . . . . . . 3 . 5 5 10 . . 2 . . 2 1 . 1 1 . . . . . . . 2 4 19 . 7 . Matter Fused 68 | . . . . . . . 2 . 4 2 6 . . 4 1 . 1 1 . 1 . . . . . . . . 7 12 23 . 3 1 Heat Flow Errors 28 | . . . . . . . . . 2 2 2 . . 1 . . 1 . . 1 . . . . . . . . 4 7 7 . 1 . Energy Discharges 20 | . . . . . . . . . 2 1 3 . . 1 . . . 1 . . . . . . . . . . . 6 3 . 3 . Parts Rejected 2 | . . . . . . . . . . . . . . 1 . . . . . . . . . . . . . . . . 1 . . . Parts Fused 2 | . . . . . . . . . . . . . . . . . . . . . . . . . . . . . 1 . . . 1 . Data Loss (minor) 31 | . . . . . . . 1 . 2 3 1 . . 2 1 . 2 . . . 2 . . . . . . . 1 7 6 . 3 . Data Loss (major) 10 | . . . . . . . . . 1 . 3 . . 1 . . . . . . . . . . . . . . . 2 2 . 1 . Misfires 2 | . . . . . . . . . . . . . . . . . . . . . . . . . . . . . 1 . . . 1 . Alerts 5 | . . . . . . . . . . . 2 . . . . . . 1 . . . . . . . . . . . 1 1 . . . Weapon Failures 2 | . . . . . . . . . . . . . . . . . . . . . . . . . . . . . . . 1 . 1 . Overload Shots . | . . . . . . . . . . . . . . . . . . . . . . . . . . . . . . . . . . . Overflow Damage 4380 | . . . 110 110 . 302 91 40 171 40 179 . . 263 43 45 114 5 159 98 45 . 121 . 11 25 208 . 453 90 785 388 437 47 Projectiles 261 | . . . . . . . . . . . . . . . . . . . . . . . . . . 25 109 . . 86 14 27 . . Explosions 642 | . . . . 87 . 94 . . . 40 . . . 126 . . . . . 47 . . 121 . 11 . 99 . . . 17 . . . Melee 3477 | . . . 110 23 . 208 91 40 171 . 179 . . 137 43 45 114 5 159 51 45 . . . . . . . 453 4 754 361 437 47 Knockbacks 13 | . . . . . . . . . . . . . . 1 . . . . . 3 . . . . . . . . 1 . 4 . . 4 Impact 6 | . . . . . . . . . . . . . . 1 . . . . . . . . . . . . . . 1 . 4 . . . Kinetic 7 | . . . . . . . . . . . . . . . . . . . . 3 . . . . . . . . . . . . . 4 Secondary . | . . . . . . . . . . . . . . . . . . . . . . . . . . . . . . . . . . . Self-Inflicted Damage 623 | . . . . 125 . 89 . . 44 39 . . . 281 . . . . . 24 . . . . . . 21 . . . . . . . Shots 20 | . . . . 4 . 3 . . 2 1 . . . 8 . . . . . 1 . . . . . . 1 . . . . . . . Rammed 14 | . 4 8 . . . . . . 2 . . . . . . . . . . . . . . . . . . . . . . . . . Targets Rammed 17 | . 4 8 . . . . . . 2 . . . . . . . . . . 2 . . . . . . . . 1 . . . . . Kicked 3 | . . . . . . . . . . . . . . . . . . . . 2 . . . . . . . . 1 . . . . . Crushed . | . . . . . . . . . . . . . . . . . . . . . . . . . . . . . . . . . . . Highest Temperature 461 | 36 354 183 231 . 6 52 7 56 190 211 257 . . 224 196 461 438 181 . 170 57 334 100 . 40 264 377 . 318 198 156 154 192 104 Average Temperature 76 | 15 61 76 125 . 6 25 7 17 89 88 122 . . 53 87 220 165 85 . 74 24 102 33 . 17 84 94 . 120 57 33 56 67 46 Received Heat Transfer 4764 | . 330 81 75 . 45 198 99 369 171 31 12 . . 396 . . 649 17 . 72 30 385 . . 18 109 21 . 570 488 572 . 26 . Effects 5 | . 1 . . . . . . . . . . . . . . . 1 . . . . . . . . . 3 . . . . . . . Shutdowns 4 | . 1 . . . . . . . . . . . . . . . . . . . . . . . . . 3 . . . . . . . Interference 1 | . . . . . . . . . . . . . . . . . 1 . . . . . . . . . . . . . . . . . Siege Activations . | . . . . . . . . . . . . . . . . . . . . . . . . . . . . . . . . . . . Martial Activations . | . . . . . . . . . . . . . . . . . . . . . . . . . . . . . . . . . . . Shielding Activations . | . . . . . . . . . . . . . . . . . . . . . . . . . . . . . . . . . . . Robots Disrupted 1 | . . . . . . . . . . . . . . . . . . . . . . . . . . 1 . . . . . . . . Combat Hostiles 1 | . . . . . . . . . . . . . . . . . . . . . . . . . . 1 . . . . . . . . Robots Corrupted 19 | . 1 1 . . . . . . . . . . . . . . . 1 . 3 1 . 1 . . 4 4 . 1 . 1 . . 1 Combat Hostiles 17 | . 1 1 . . . . . . . . . . . . . . . 1 . 1 1 . 1 . . 4 4 . 1 . 1 . . 1 Parts Fried 48 | . 3 2 . . . . . . . . . . . . . . . . . 13 2 . 2 . . 8 9 . 2 . 3 . . 4 Impact Corruptions 4 | . . . . . . . . . . . . . . 2 . . . . . . . . . . . . . . . . 2 . . . Robots Melted 23 | . . . . . . . . . . . . . . . . . . . . . . . . . . . . . 1 1 12 2 5 2 Combat Hostiles 21 | . . . . . . . . . . . . . . . . . . . . . . . . . . . . . 1 1 10 2 5 2 Parts Melted 66 | 1 7 . . . . . . 1 . . . . . . . . . . . . . . . . . . . . 1 6 25 3 12 10 Heat Transferred 23030 | 222 1739 . . . . . . . . . . . . 100 999 . . . . . . . . . . . 285 . 460 1658 9501 1120 4307 2639 Parts Sabotaged . | . . . . . . . . . . . . . . . . . . . . . . . . . . . . . . . . . . . Parts Stolen . | . . . . . . . . . . . . . . . . . . . . . . . . . . . . . . . . . . . Parts Stripped . | . . . . . . . . . . . . . . . . . . . . . . . . . . . . . . . . . . . Power Chain Reactions 1 | . . . . . . . . . . . . . . . . . . . . . . . . . . . 1 . . . . . . . Alert | -11 -10 -10 -9 -9 -8 -8 -8 -8 -6 -6 -6 -6 -5 -5 -5 -5 -5 -5 -5 -5 -4 -4 -4 -4 -3 -3 -3 -3 -2 -2 -2 -1 -1 -1 ------- Run | Yrd Mat Min Mat Min Mat Sto Rec Scr Fac Low Low Zio Pro Fac Was Fac Ext Cet Arc Hub Fac Upp Upp Zhi Pro Res Arm Lab Res Qua Frg Acc Com Ac0 Maximum Alert Level 3 | . . . . . . 2 1 . . . . . . 1 . . 2 1 . 3 1 . . . . . 2 . 1 . 3 2 2 . Low Security (%) 71 | 100 100 100 100 100 100 71 91 . 100 . . . . 74 100 100 81 80 100 16 22 . . . . 100 71 . 98 100 66 . . . Level 1 12 | . . . . . . 26 8 . . . . . . 25 . . 16 19 . 70 77 . . . . . 14 . 1 . 13 . 13 . Level 2 15 | . . . . . . 1 . . . . . . . . . . 2 . . 2 . . . . . . 14 . . . 16 100 86 . Level 3 . | . . . . . . . . . . . . . . . . . . . . 10 . . . . . . . . . . 2 . . . Level 4 . | . . . . . . . . . . . . . . . . . . . . . . . . . . . . . . . . . . . Level 5 . | . . . . . . . . . . . . . . . . . . . . . . . . . . . . . . . . . . . High Security . | . . . . . . . . . . . . . . . . . . . . . . . . . . . . . . . . . . . Max Security . | . . . . . . . . . . . . . . . . . . . . . . . . . . . . . . . . . . . Peak Influence 791 | 5 117 50 74 126 40 405 245 . 96 . . . . 257 79 16 461 253 180 737 338 . . . . 93 542 . 203 114 791 616 506 . Initial 472 | . . 19 . 12 12 . 145 . . . . . . . 79 . . 253 51 46 338 . . . . . 35 . . 20 . 472 388 . Average 113 | 1 41 6 16 55 8 130 139 . 22 . . . . 129 12 . 81 163 138 285 225 . . . . 17 216 . 47 24 215 498 388 . Influence Increases 12216 | 15 561 150 239 341 72 765 383 . 412 60 55 . . 628 . 22 777 308 204 1087 370 70 195 . 60 432 786 . 599 482 1611 400 702 430 Destroy 0b10 Robot/C 6060 | . 360 100 140 240 20 380 160 . 240 60 20 . . 260 . . 480 160 80 260 160 60 140 . 60 160 480 . 340 220 980 140 360 . Destroy 0b10 Robot/NC 565 | 15 40 . 20 10 10 45 10 . 20 . 10 . . 30 . . 35 10 25 95 10 . . . . 10 5 . 60 5 5 25 70 . Destroy Leader 954 | . 78 20 32 30 4 100 . . 80 . 10 . . 42 . . 42 . . 52 42 10 10 . . 50 72 . 64 32 130 22 32 . Allied During Kill 535 | . . . . . . . 20 . . . . . . . . . 130 116 84 117 . . . . . 6 21 . . . . . 41 . Successful Hack 613 | . 36 . 27 . 8 32 13 . 37 . . . . 27 . 14 29 . . 21 60 . . . . 59 40 . . 72 54 82 2 . Select Force Hacks 180 | . . . . . . . 180 . . . . . . . . . . . . . . . . . . . . . . . . . . . Disable Machine 915 | . . . . . . 60 . . 15 . . . . 75 . . 15 . 15 120 30 . . . . 15 60 . 30 105 255 30 30 60 Destroy Structure 1689 | . 2 . 5 46 . 43 . . 20 . . . . 104 . 8 46 22 . 332 38 . . . . 72 108 . 30 48 157 101 137 370 Partial Spotted 45 | . . . . . . 15 . . . . . . . . . . . . . 15 . . . . . 15 . . . . . . . . Lose Combat Pursuer 660 | . 45 30 15 15 30 90 . . . . 15 . . 90 . . . . . 75 30 . 45 . . 45 . . 75 . 30 . 30 . Influence Decreases 11846 | 15 510 201 208 340 104 392 728 28 322 150 55 . . 402 226 22 324 632 198 531 857 274 98 97 60 363 844 11 563 518 822 581 650 720 Entered New Map 2660 | . . 32 . 19 20 . 228 28 . 34 . . . . 147 . . 200 78 89 353 77 . 97 . . 34 11 . 16 . 317 220 660 Time Decay 7410 | 15 465 169 208 311 84 382 490 . 299 116 55 . . 302 79 22 267 222 110 342 494 197 98 . 60 323 380 . 313 374 629 254 350 . Lost Part 625 | . 45 . . 10 . 10 10 . 13 . . . . 90 . . 15 30 10 20 10 . . . . 20 20 . 100 22 130 10 . 60 Lost Ally 542 | . . . . . . . . . 10 . . . . 10 . . 42 180 . 80 . . . . . 20 110 . . . 10 . 80 . Purge Threat 609 | . . . . . . . . . . . . . . . . . . . . . . . . . . . 300 . 150 106 53 . . . Squads Dispatched 73 | . 4 . 1 . 1 3 . . 7 . . . . 6 . 1 . . . 4 5 . . . . 8 6 . 9 5 6 4 3 . Investigation 19 | . 1 . 1 . . 1 . . 2 . . . . 1 . 1 . . . . 1 . . . . 4 3 . 2 . . 1 1 . Extermination 27 | . . . . . . . . . 3 . . . . 1 . . . . . 1 3 . . . . . 2 . 4 5 5 1 2 . Reinforcement 24 | . 3 . . . 1 2 . . 2 . . . . 3 . . . . . 3 . . . . . 4 1 . 3 . 1 1 . . Assault 1 | . . . . . . . . . . . . . . . . . . . . . . . . . . . . . . . . 1 . . Garrison 2 | . . . . . . . . . . . . . . 1 . . . . . . 1 . . . . . . . . . . . . . Intercept . | . . . . . . . . . . . . . . . . . . . . . . . . . . . . . . . . . . . Searches Triggered . | . . . . . . . . . . . . . . . . . . . . . . . . . . . . . . . . . . . Unchained Authorized 5 | . . . . . . . . . . . . . . . . . . . . . 1 . . . . . 1 . 1 1 . 1 . . Construction Impeded 3 | . . . . . . 1 . . . . . . . 1 . . . . . 1 . . . . . . . . . . . . . . Haulers Reinforced 4 | . . . . . . . . . 1 . . . . . . . . . . . . . . . . 2 . . 1 . . . . . Active Scanning Responses . | . . . . . . . . . . . . . . . . . . . . . . . . . . . . . . . . . . . Cargo Convoy Interrupts . | . . . . . . . . . . . . . . . . . . . . . . . . . . . . . . . . . . . Stealth | -11 -10 -10 -9 -9 -8 -8 -8 -8 -6 -6 -6 -6 -5 -5 -5 -5 -5 -5 -5 -5 -4 -4 -4 -4 -3 -3 -3 -3 -2 -2 -2 -1 -1 -1 --------- Run | Yrd Mat Min Mat Min Mat Sto Rec Scr Fac Low Low Zio Pro Fac Was Fac Ext Cet Arc Hub Fac Upp Upp Zhi Pro Res Arm Lab Res Qua Frg Acc Com Ac0 Distress Signals 47 | . 3 . . . . 2 . . . . . . . 1 . . 2 2 . 1 1 . . . . 11 . . 1 1 . . 22 . Communications Jammed 46 | . . . . . . . . . 1 . . . . . . . . . . . . . . . . . 24 . . . 1 4 16 . Distress Signals 46 | . . . . . . . . . 1 . . . . . . . . . . . . . . . . . 24 . . . 1 4 16 . Times Spotted 468 | . 36 6 7 13 3 31 5 9 14 3 2 . . 27 . 1 31 9 4 33 16 2 6 . 3 14 26 . 28 22 54 11 20 32 Peak Tracking Total 10 | . 4 2 2 4 3 5 3 5 3 3 1 . . 7 . 1 5 5 1 10 4 2 4 . 3 4 7 . 5 5 5 4 5 4 Tactical Retreats 30 | . 2 2 1 1 2 5 . . . . 1 . . 3 . . . . . 2 1 . 1 . . 2 . . 3 . 2 . 2 . Traps | -11 -10 -10 -9 -9 -8 -8 -8 -8 -6 -6 -6 -6 -5 -5 -5 -5 -5 -5 -5 -5 -4 -4 -4 -4 -3 -3 -3 -3 -2 -2 -2 -1 -1 -1 ------- Run | Yrd Mat Min Mat Min Mat Sto Rec Scr Fac Low Low Zio Pro Fac Was Fac Ext Cet Arc Hub Fac Upp Upp Zhi Pro Res Arm Lab Res Qua Frg Acc Com Ac0 Traps Triggered 29 | . 1 . . . . 1 . . 1 . . . . 1 . 1 2 . . 1 1 . . . . 1 1 . 3 3 7 3 2 . Indirectly . | . . . . . . . . . . . . . . . . . . . . . . . . . . . . . . . . . . . Trap Hack Attempts . | . . . . . . . . . . . . . . . . . . . . . . . . . . . . . . . . . . . Triggered . | . . . . . . . . . . . . . . . . . . . . . . . . . . . . . . . . . . . Disarmed . | . . . . . . . . . . . . . . . . . . . . . . . . . . . . . . . . . . . Reprogrammed . | . . . . . . . . . . . . . . . . . . . . . . . . . . . . . . . . . . . Reused . | . . . . . . . . . . . . . . . . . . . . . . . . . . . . . . . . . . . Traps Extracted . | . . . . . . . . . . . . . . . . . . . . . . . . . . . . . . . . . . . Installed . | . . . . . . . . . . . . . . . . . . . . . . . . . . . . . . . . . . . Triggered . | . . . . . . . . . . . . . . . . . . . . . . . . . . . . . . . . . . . Machines | -11 -10 -10 -9 -9 -8 -8 -8 -8 -6 -6 -6 -6 -5 -5 -5 -5 -5 -5 -5 -5 -4 -4 -4 -4 -3 -3 -3 -3 -2 -2 -2 -1 -1 -1 ---------- Run | Yrd Mat Min Mat Min Mat Sto Rec Scr Fac Low Low Zio Pro Fac Was Fac Ext Cet Arc Hub Fac Upp Upp Zhi Pro Res Arm Lab Res Qua Frg Acc Com Ac0 Machines Disabled 73 | . . . . . . 4 . 1 1 . . . . 5 . . 3 . 1 8 2 . . . . 1 4 2 2 7 24 2 2 4 Max in Single Turn 7 | . . . . . . 1 . 1 1 . . . . 1 . . 1 . . 7 1 . . . . 1 1 1 1 1 2 1 1 1 Garrison Access 6 | . . . . . . . . . 2 . . . . . . 1 . . . 1 1 . . . . . . . . . 1 . . . Network Hub 4 | . . . . . . . . . . . . . . . . . . . . 4 . . . . . . . . . . . . . . Machines Repaired . | . . . . . . . . . . . . . . . . . . . . . . . . . . . . . . . . . . . Machines Dismantled . | . . . . . . . . . . . . . . . . . . . . . . . . . . . . . . . . . . . Machines Sabotaged . | . . . . . . . . . . . . . . . . . . . . . . . . . . . . . . . . . . . Overloaded Fab Kills . | . . . . . . . . . . . . . . . . . . . . . . . . . . . . . . . . . . . Hacking | -11 -10 -10 -9 -9 -8 -8 -8 -8 -6 -6 -6 -6 -5 -5 -5 -5 -5 -5 -5 -5 -4 -4 -4 -4 -3 -3 -3 -3 -2 -2 -2 -1 -1 -1 --------- Run | Yrd Mat Min Mat Min Mat Sto Rec Scr Fac Low Low Zio Pro Fac Was Fac Ext Cet Arc Hub Fac Upp Upp Zhi Pro Res Arm Lab Res Qua Frg Acc Com Ac0 Machines Accessed 119 | . 5 . 7 1 1 9 12 2 12 1 . 1 . 5 . 5 6 . . 3 8 . 1 4 . 7 9 . 3 4 5 4 4 . Terminals 72 | . 5 . 6 . 1 9 6 . 6 . . . . 3 . 3 6 . . 2 6 . . . . 1 4 . 1 3 4 3 3 . Fabricators 8 | . . . . . . . . . 1 . . . . 1 . . . . . . 1 . . . . . 4 . 1 . . . . . Repair Stations 4 | . . . 1 . . . . . 1 . . . . . . . . . . . . . . . . 1 1 . . . . . . . Recycling Units 15 | . . . . . . . 6 . 1 . . . . 1 . 1 . . . . . . . . . 3 . . 1 . . 1 1 . Scanalyzers 4 | . . . . . . . . . 1 . . . . . . . . . . . . . . . . 2 . . . 1 . . . . Garrison Access 6 | . . . . . . . . . 2 . . . . . . 1 . . . 1 1 . . . . . . . . . 1 . . . Total Hacks 380 | . 20 . 18 1 1 27 20 6 37 1 . 4 . 8 . 14 12 . . 6 41 . 1 17 . 26 27 . 23 25 25 12 8 . Successful 189 | . 9 . 8 1 1 9 13 6 18 1 . 4 . 4 . 5 6 . . 3 11 . 1 17 . 15 15 . 10 12 12 6 2 . Failed 189 | . 11 . 10 . . 18 7 . 19 . . . . 4 . 9 6 . . 3 30 . . . . 10 12 . 13 12 13 6 6 . Catastrophic 46 | . 2 . 2 . . 3 . . 3 . . . . 3 . 2 2 . . 1 10 . . . . 1 5 . 2 4 3 3 . . Database Lockouts 2 | . . . . . . . . . . . . . . . . . . . . . . . . . . 1 . . . 1 . . . . Manual 186 | . 14 . 10 . 1 7 19 . 17 . . . . 6 . 8 4 1 . 3 33 . . . . 4 13 . 16 6 11 6 7 . Terminals 254 | . 20 . 15 . 1 27 14 . 26 . . . . 3 . 11 12 . . 5 36 . . . . 4 11 . 14 14 24 11 6 . Fabricators 30 | . . . . . . . . . 2 . . . . 4 . . . . . . 4 . . . . . 13 . 7 . . . . . Repair Stations 14 | . . . 3 . . . . . 1 . . . . . . . . . . . . . . . . 7 3 . . . . . . . Recycling Units 17 | . . . . . . . 6 . 1 . . . . 1 . 1 . . . . . . . . . 3 . . 2 . . 1 2 . Scanalyzers 26 | . . . . . . . . . 3 . . . . . . . . . . . . . . . . 12 . . . 11 . . . . Garrison Access 9 | . . . . . . . . . 4 . . . . . . 2 . . . 1 1 . . . . . . . . . 1 . . . Terminal Hacks 92 | . 5 . 3 1 1 8 . 6 7 1 . 4 . . . 2 5 . . 1 7 . 1 17 . 2 3 . 6 2 7 2 1 . Record 5 | . . . . . . . . . . . . . . . . . . . . . . . . 5 . . . . . . . . . . Part Schematic 15 | . . . . . . 2 . . 1 . . 4 . . . . . . . . 3 . . 4 . . . . . . 1 . . . Robot Schematic 1 | . . . . . . . . . 1 . . . . . . . . . . . . . . . . . . . . . . . . . Robot Analysis 13 | . 3 . 1 . . . . 5 . . . . . . . . . . . . . . . 4 . . . . . . . . . . Prototype ID Bank 6 | . . . . . . 2 . . . . . . . . . . . . . . . . . 4 . . . . . . . . . . Open Door 12 | . . . . 1 . 4 . . . 1 . . . . . . 4 . . . . . 1 . . . . . . . . . 1 . Branch Access Points 7 | . . . 1 . 1 . . . 1 . . . . . . 1 . . . . 1 . . . . 1 . . . . . 1 . . Emergency Access Points 1 | . . . . . . . . . . . . . . . . . . . . 1 . . . . . . . . . . . . . . Terminal Index 6 | . 1 . . . . . . . 1 . . . . . . . . . . . 1 . . . . . . . 1 . 1 1 . . Fabricator Index 3 | . . . . . . . . . . . . . . . . 1 . . . . 1 . . . . . . . 1 . . . . . Scanalyzer Index 3 | . . . . . . . . . 1 . . . . . . . . . . . . . . . . 1 . . 1 . . . . . Unreport Threat 5 | . . . . . . . . . . . . . . . . . . . . . . . . . . . 2 . 1 1 1 . . . Locate Traps 5 | . . . . . . . . . 1 . . . . . . . 1 . . . 1 . . . . . . . 1 . 1 . . . Recall Extermination 2 | . . . . . . . . . . . . . . . . . . . . . . . . . . . . . 1 1 . . . . Hauler Manifests 2 | . . . 1 . . . . . 1 . . . . . . . . . . . . . . . . . . . . . . . . . Registered Components 1 | . 1 . . . . . . . . . . . . . . . . . . . . . . . . . . . . . . . . . Zone Layout 3 | . . . . . . . . . . . . . . . . . . . . . . . . . . . 1 . . . 2 . . . Proto ID Catalog 2 | . . . . . . . . 1 . . . . . . . . . . . . . . . . . . . . . . 1 . . . Fabricator Hacks 13 | . . . . . . . . . 1 . . . . 2 . . . . . . 2 . . . . . 6 . 2 . . . . . Network Status 1 | . . . . . . . . . . . . . . . . . . . . . . . . . . . 1 . . . . . . . Load Schematic 7 | . . . . . . . . . . . . . . 1 . . . . . . 1 . . . . . 4 . 1 . . . . . Build 5 | . . . . . . . . . 1 . . . . 1 . . . . . . 1 . . . . . 1 . 1 . . . . . Repair Station Hacks 8 | . . . 2 . . . . . . . . . . . . . . . . . . . . . . 4 2 . . . . . . . Scan Component 4 | . . . 1 . . . . . . . . . . . . . . . . . . . . . . 2 1 . . . . . . . Repair 4 | . . . 1 . . . . . . . . . . . . . . . . . . . . . . 2 1 . . . . . . . Recycling Unit Hacks . | . . . . . . . . . . . . . . . . . . . . . . . . . . . . . . . . . . . Scanalyzer 13 | . . . . . . . . . 2 . . . . . . . . . . . . . . . . 5 . . . 6 . . . . Insert Component 4 | . . . . . . . . . 1 . . . . . . . . . . . . . . . . 1 . . . 2 . . . . Analyze 5 | . . . . . . . . . 1 . . . . . . . . . . . . . . . . 3 . . . 1 . . . . Retrieve Study 4 | . . . . . . . . . . . . . . . . . . . . . . . . . . 1 . . . 3 . . . . Garrison Access Hacks 6 | . . . . . . . . . 2 . . . . . . 1 . . . 1 1 . . . . . . . . . 1 . . . Seal Access 6 | . . . . . . . . . 2 . . . . . . 1 . . . 1 1 . . . . . . . . . 1 . . . Unauthorized Hacks 57 | . 4 . 3 . . 1 13 . 6 . . . . 2 . 2 1 . . 1 1 . . . . 4 4 . 2 4 4 4 1 . Terminals 35 | . 4 . 3 . . 1 7 . 4 . . . . 1 . 1 1 . . 1 . . . . . 1 1 . . 3 4 3 . . Track 7 | . . . . . . . . . . . . . . . . . . . . . . . . . . . . . . 3 3 1 . . Assimilate 6 | . 2 . . . . . . . 1 . . . . 1 . . . . . . . . . . . . 1 . . . 1 . . . Botnet 12 | . 1 . 1 . . . 2 . 2 . . . . . . 1 1 . . 1 . . . . . 1 . . . . . 2 . . Operators 3 | . 1 . . . . 1 . . 1 . . . . . . . . . . . . . . . . . . . . . . . . . Skim 7 | . . . 2 . . . 5 . . . . . . . . . . . . . . . . . . . . . . . . . . . Fabricators 5 | . . . . . . . . . . . . . . . . . . . . . 1 . . . . . 3 . 1 . . . . . Prioritize 2 | . . . . . . . . . . . . . . . . . . . . . 1 . . . . . . . 1 . . . . . Recompile 3 | . . . . . . . . . . . . . . . . . . . . . . . . . . . 3 . . . . . . . Repair Stations 1 | . . . . . . . . . 1 . . . . . . . . . . . . . . . . . . . . . . . . . Patch 1 | . . . . . . . . . 1 . . . . . . . . . . . . . . . . . . . . . . . . . Recycling Units 15 | . . . . . . . 6 . 1 . . . . 1 . 1 . . . . . . . . . 3 . . 1 . . 1 1 . Tunnel 6 | . . . . . . . 6 . . . . . . . . . . . . . . . . . . . . . . . . . . . Fedlink 8 | . . . . . . . . . 1 . . . . 1 . 1 . . . . . . . . . 3 . . 1 . . 1 . . Scrapoids 1 | . . . . . . . . . . . . . . . . . . . . . . . . . . . . . . . . . 1 . Scanalyzers 1 | . . . . . . . . . . . . . . . . . . . . . . . . . . . . . . 1 . . . . Researchers 1 | . . . . . . . . . . . . . . . . . . . . . . . . . . . . . . 1 . . . . Garrison Access . | . . . . . . . . . . . . . . . . . . . . . . . . . . . . . . . . . . . Data Cores Recovered 1 | . . . . . . . . . . . . . . . . . . . . 1 . . . . . . . . . . . . . . Used 1 | . . . . . . . . . . . . . . . . . . . . 1 . . . . . . . . . . . . . . Hacking Detections 73 | . 4 . 7 . . 7 5 . 8 . . . . 4 . 3 3 . . 2 7 . . . . 4 6 . 2 3 2 3 3 . Full Trace Events 5 | . 1 . 1 . . 1 . . . . . . . . . . . . . . 1 . . . . . . . 1 . . . . . Feedback Events . | . . . . . . . . . . . . . . . . . . . . . . . . . . . . . . . . . . . Feedback Blocked . | . . . . . . . . . . . . . . . . . . . . . . . . . . . . . . . . . . . Robot Schematics Acquired 4 | . . . . . . . . . 1 . . . . . . . . . . . . . . . . . . . . . 3 . . . Robots Built . | . . . . . . . . . . . . . . . . . . . . . . . . . . . . . . . . . . . Authchips . | . . . . . . . . . . . . . . . . . . . . . . . . . . . . . . . . . . . Time . | . . . . . . . . . . . . . . . . . . . . . . . . . . . . . . . . . . . Total Robot Build Rating . | . . . . . . . . . . . . . . . . . . . . . . . . . . . . . . . . . . . Part Schematics Acquired 43 | . . . . . . 2 . . 2 . . 4 . 7 1 2 5 1 . . 3 . . 4 . 1 . . . 1 10 . . . Parts Built 8 | . . . . . . . . . 2 . . . . 2 . . . . . . 2 . . . . . 1 . 1 . . . . . Authchips 2 | . . . . . . . . . . . . . . 1 . . . . . . . . . . . . 1 . . . . . . . Time 195 | . . . . . . . . . 53 . . . . 53 . . . . . . 29 . . . . . 39 . 21 . . . . . Total Part Build Rating 49 | . . . . . . . . . 12 . . . . 12 . . . . . . 14 . . . . . 7 . 4 . . . . . Part Studies Acquired 4 | . . . . . . . . . . . . . . . . . . . . . . . . . . 1 . . . 3 . . . . Parts Repaired 4 | . . . 1 . . . . . . . . . . . . . . . . . . . . . . 2 1 . . . . . . . Time 168 | . . . 26 . . . . . . . . . . . . . . . . . . . . . . 88 54 . . . . . . . Parts Recycled . | . . . . . . . . . . . . . . . . . . . . . . . . . . . . . . . . . . . Recycled Matter . | . . . . . . . . . . . . . . . . . . . . . . . . . . . . . . . . . . . Retrieved Matter . | . . . . . . . . . . . . . . . . . . . . . . . . . . . . . . . . . . . Retrieved Components . | . . . . . . . . . . . . . . . . . . . . . . . . . . . . . . . . . . . Parts Scanalyzed 3 | . . . . . . . . . 1 . . . . . . . . . . . . . . . . 1 . . . 1 . . . . Part Schematics Acquired 3 | . . . . . . . . . 1 . . . . . . . . . . . . . . . . 1 . . . 1 . . . . Parts Damaged . | . . . . . . . . . . . . . . . . . . . . . . . . . . . . . . . . . . . Bothacking | -11 -10 -10 -9 -9 -8 -8 -8 -8 -6 -6 -6 -6 -5 -5 -5 -5 -5 -5 -5 -5 -4 -4 -4 -4 -3 -3 -3 -3 -2 -2 -2 -1 -1 -1 ------------ Run | Yrd Mat Min Mat Min Mat Sto Rec Scr Fac Low Low Zio Pro Fac Was Fac Ext Cet Arc Hub Fac Upp Upp Zhi Pro Res Arm Lab Res Qua Frg Acc Com Ac0 Used RIF Installer . | . . . . . . . . . . . . . . . . . . . . . . . . . . . . . . . . . . . Robots Hacked 1 | . . . . . . . . . . . . . . . . . . . . . . . . . . . 1 . . . . . . . Non-combat . | . . . . . . . . . . . . . . . . . . . . . . . . . . . . . . . . . . . Combat . | . . . . . . . . . . . . . . . . . . . . . . . . . . . . . . . . . . . Robot Hacks Applied . | . . . . . . . . . . . . . . . . . . . . . . . . . . . . . . . . . . . Manual 1 | . . . . . . . . . . . . . . . . . . . . . . . . . . . 1 . . . . . . . Relay Couplers Released . | . . . . . . . . . . . . . . . . . . . . . . . . . . . . . . . . . . . Fabnet Peak Effective % . | . . . . . . . . . . . . . . . . . . . . . . . . . . . . . . . . . . . Robots Rewired 25 | . . . . . . . 8 . . . . . . . . . 12 . . . . . . . . 1 4 . . . . . . . Allies Hacked 6 | . . . . . . . . . . . . . . . . . . . . . . . . . . . 6 . . . . . . . Hacks Repelled . | . . . . . . . . . . . . . . . . . . . . . . . . . . . . . . . . . . . Allies | -11 -10 -10 -9 -9 -8 -8 -8 -8 -6 -6 -6 -6 -5 -5 -5 -5 -5 -5 -5 -5 -4 -4 -4 -4 -3 -3 -3 -3 -2 -2 -2 -1 -1 -1 -------- Run | Yrd Mat Min Mat Min Mat Sto Rec Scr Fac Low Low Zio Pro Fac Was Fac Ext Cet Arc Hub Fac Upp Upp Zhi Pro Res Arm Lab Res Qua Frg Acc Com Ac0 Total Allies 46 | . . 1 . . . . 8 . 1 . . . . 1 . . 17 5 . . . . . . . 1 6 . . . 1 . 5 . Largest Group 9 | . . 1 . . . . 8 8 1 . . . . 1 . . 9 9 4 4 . . . . . 1 4 . . . 1 . 5 . Highest-Rated Group 696 | . . 31 . . . . 126 127 10 . . . . 26 . . 363 696 307 307 . . . . . 64 168 . . . 26 . 323 . Highest-Rated Ally 159 | . . 31 . . . . 27 27 10 . . . . 26 . . 159 159 96 96 . . . . . 64 116 . . . 26 . 67 . Total Orders 40 | . . . . . . . . 27 . . . . . . . . . 3 . . . . . . . . . . . . 6 . 4 . STAY 21 | . . . . . . . . 15 . . . . . . . . . 1 . . . . . . . . . . . . 3 . 2 . FOLLOW 15 | . . . . . . . . 9 . . . . . . . . . 1 . . . . . . . . . . . . 3 . 2 . AID 1 | . . . . . . . . . . . . . . . . . . 1 . . . . . . . . . . . . . . . . PICKUP 3 | . . . . . . . . 3 . . . . . . . . . . . . . . . . . . . . . . . . . . Ally Attacks 346 | . . . . . . . . 7 . . . . . . . . 87 56 17 52 . . . . . 6 13 . . . . . 108 . Total Damage 11268 | . . . . . . . . 140 . . . . . . . . 2688 1951 692 2341 . . . . . 237 674 . . . . . 2545 . Kills 54 | . . . . . . . . 1 . . . . . . . . 20 9 4 12 . . . . . 1 5 . . . . . 2 . Allies Corrupted 3 | . . . . . . . . . . . . . . . . . 1 . . . . . . . . . 2 . . . . . . . Allies Melted 1 | . . . . . . . . 1 . . . . . . . . . . . . . . . . . . . . . . . . . . Intel | -11 -10 -10 -9 -9 -8 -8 -8 -8 -6 -6 -6 -6 -5 -5 -5 -5 -5 -5 -5 -5 -4 -4 -4 -4 -3 -3 -3 -3 -2 -2 -2 -1 -1 -1 ------- Run | Yrd Mat Min Mat Min Mat Sto Rec Scr Fac Low Low Zio Pro Fac Was Fac Ext Cet Arc Hub Fac Upp Upp Zhi Pro Res Arm Lab Res Qua Frg Acc Com Ac0 Active Infowar (turns) 25791 | 15 1036 168 369 859 317 842 . . 1431 966 962 967 1134 746 548 431 813 69 231 521 1137 922 883 172 671 1435 604 187 801 1162 2641 555 1651 545 Optics 2 | . . . . . . . . . . . . 2 . . . . . . . . . . . . . . . . . . . . . . Sensors 16453 | . . . . . . . . . . 954 962 965 1134 746 548 431 806 69 231 521 1137 922 883 172 671 1367 166 90 466 571 2140 501 . . Structural 1497 | . . . . . . . . . . . . . . . . . . . . . . . . . . . . . . 303 192 455 2 545 Seismic 4950 | 15 1036 168 369 859 317 842 . . 1310 12 22 . . . . . . . . . . . . . . . . . . . . . . . Cloaking 964 | . . . . . . . . . . . . . . . . . . . . . . . . . . . . . . . 18 531 415 . Jamming 9500 | . . . . . . . . . 862 . . . . 51 . 132 295 . . . . . . . . 1344 604 97 335 936 2641 552 1651 . Robot Analysis Total 13 | . 3 . 1 . . . . 5 . . . . . . . . . . . . . . . 4 . . . . . . . . . . Derelict Logs Recovered 10 | . . 2 . 2 . . . . . 1 1 1 . . . . . . . . . 2 1 . . . . . . . . . . . Drone Launches 8 | . . . . . . . . . . . . . . . . . 8 . . . . . . . . . . . . . . . . . Drone Recoveries . | . . . . . . . . . . . . . . . . . . . . . . . . . . . . . . . . . . . Exploration | -11 -10 -10 -9 -9 -8 -8 -8 -8 -6 -6 -6 -6 -5 -5 -5 -5 -5 -5 -5 -5 -4 -4 -4 -4 -3 -3 -3 -3 -2 -2 -2 -1 -1 -1 ------------- Run | Yrd Mat Min Mat Min Mat Sto Rec Scr Fac Low Low Zio Pro Fac Was Fac Ext Cet Arc Hub Fac Upp Upp Zhi Pro Res Arm Lab Res Qua Frg Acc Com Ac0 Turns Passed 42585 | 123 1873 1520 890 884 317 1220 1282 3491 1695 1009 1044 1456 1137 907 548 446 1521 479 231 776 1314 1002 923 175 697 1439 881 2788 1218 1729 2641 555 3632 742 Spaces Moved 23084 | 60 766 579 423 523 164 557 612 1629 899 779 737 1162 583 509 371 307 838 177 109 404 696 786 845 152 542 1092 426 397 557 918 1355 391 2368 371 Core 335 | 4 . . . . . . . . . . . . . . . . . . . . . . . . . . . 331 . . . . . . Treads 6153 | 56 766 579 423 523 164 557 612 1629 529 . . . . . . . . . . . . . . . . . . . . . 315 . . . Legs 16596 | . . . . . . . . . 370 779 737 1162 583 509 371 307 838 177 109 404 696 786 845 152 542 1092 426 66 557 918 1040 391 2368 371 Wheels . | . . . . . . . . . . . . . . . . . . . . . . . . . . . . . . . . . . . Hover . | . . . . . . . . . . . . . . . . . . . . . . . . . . . . . . . . . . . Flight . | . . . . . . . . . . . . . . . . . . . . . . . . . . . . . . . . . . . Fastest Speed 50 | 50 160 240 160 160 160 160 160 160 120 120 120 120 120 120 120 120 120 120 120 110 102 102 102 102 106 103 103 50 111 106 100 100 100 100 Average Speed 129 | 152 189 240 160 160 160 160 160 160 145 120 120 120 121 123 120 120 120 124 120 123 109 102 102 103 106 103 152 70 133 142 124 100 100 102 Slowest Speed 260 | 160 240 240 160 160 160 160 160 160 240 120 120 120 124 124 120 120 120 185 120 190 115 102 102 106 106 106 207 207 260 255 160 100 260 260 Overloaded Moves . | . . . . . . . . . . . . . . . . . . . . . . . . . . . . . . . . . . . Propulsion Burnouts . | . . . . . . . . . . . . . . . . . . . . . . . . . . . . . . . . . . . Robots Hopped . | . . . . . . . . . . . . . . . . . . . . . . . . . . . . . . . . . . . Potential Cave-ins 16 | . . . . . . . . . . . . . . . . . . . . . . . . . . . . . . . 13 . 3 . Cave-ins Triggered 1 | . . . . . . . . . . . . . . . . . . . . . . . . . . . . . . . . . 1 . Teleports 4 | . . . . . . . . . . . . . . . . . . . . . . . . . . . 1 . . . 1 . 1 1 Exploration Rate (%) 57 | 5 90 96 39 98 15 76 96 84 25 90 88 83 61 12 91 8 91 56 72 55 19 85 77 61 86 36 40 86 9 75 33 14 44 29 Regions Visited 34 Branch Regions 23 Pre-discovered Areas 17 | . . . . 1 . 1 7 . . 1 . 3 . 1 . . . . . . . . . 3 . . . . . . . . . . Known Exits Taken 22 | . . . 1 1 1 . 1 . 1 . . 1 1 . . 1 1 1 1 1 1 1 1 1 1 1 1 1 1 . . 1 . . Unknown Exits Taken 10 | 1 1 1 . . . 1 . 1 . 1 1 . . . . . . . . . . . . . . . . . . 1 1 . 1 . Scrap Searched 32 | . . 3 . 1 . . . 5 . 3 8 4 1 . . . . . . . . 3 3 . 1 . . . . . . . . . Spaces Dug 368 | . . . 5 36 . 23 . 1 26 28 4 . 11 5 . 4 2 . . 11 17 1 13 . 13 32 18 17 8 13 9 20 35 16 Terrain Destroyed 883 | . . . 5 54 . 41 . 1 26 30 4 . 13 55 . 4 33 . 2 198 19 4 32 . 44 40 59 17 10 19 26 30 41 76 Melee 217 | . . . 5 . . 8 . 1 15 8 4 . 11 5 . 4 2 . . 10 17 . 2 . 13 20 10 17 8 9 9 12 27 . Projectile 206 | . . . . . . . . . 1 10 . . 2 1 . . 1 . 2 13 2 4 1 . 14 19 12 . 2 10 17 18 13 64 AOE 447 | . . . . 54 . 33 . . 10 12 . . . 49 . . 30 . . 175 . . 29 . 17 . 37 . . . . . 1 . Terrain Rammed . | . . . . . . . . . . . . . . . . . . . . . . . . . . . . . . . . . . . Walls Destroyed . | . . . . . . . . . . . . . . . . . . . . . . . . . . . . . . . . . . . Machines Disabled . | . . . . . . . . . . . . . . . . . . . . . . . . . . . . . . . . . . . Actions | -11 -10 -10 -9 -9 -8 -8 -8 -8 -6 -6 -6 -6 -5 -5 -5 -5 -5 -5 -5 -5 -4 -4 -4 -4 -3 -3 -3 -3 -2 -2 -2 -1 -1 -1 --------- Run | Yrd Mat Min Mat Min Mat Sto Rec Scr Fac Low Low Zio Pro Fac Was Fac Ext Cet Arc Hub Fac Upp Upp Zhi Pro Res Arm Lab Res Qua Frg Acc Com Ac0 Total 33719 | 77 1038 671 585 552 210 770 886 2480 1186 818 856 1227 990 704 457 373 1263 407 195 611 1154 961 893 169 622 1371 633 2885 892 1180 2094 513 3411 585 Wait 7294 | . 154 63 106 . 14 109 193 814 167 9 76 28 385 97 53 50 224 178 66 111 340 142 10 . 48 128 67 2398 151 58 348 29 674 4 Move 23048 | 59 765 578 422 522 163 556 611 1628 898 778 736 1161 582 509 370 306 837 176 108 403 695 785 844 151 541 1091 425 396 556 917 1354 389 2366 370 Hop . | . . . . . . . . . . . . . . . . . . . . . . . . . . . . . . . . . . . Pick Up 265 | 5 15 3 12 3 8 6 . 7 15 . 6 6 1 5 3 . 11 6 2 6 7 1 3 2 . 19 10 21 10 18 34 3 12 5 Fast Attach 205 | 6 2 . 1 2 2 5 1 . 8 . 1 10 2 4 2 6 2 3 2 5 8 2 3 5 . 12 7 8 11 17 34 6 20 8 Attach 164 | 1 5 . 5 2 1 1 . 2 8 . 2 2 . 10 1 . 8 2 1 3 8 1 4 1 . 12 7 3 12 11 24 3 8 16 Detach 96 | . 1 . 2 1 . . . 1 1 . . 6 1 1 1 . . . 1 5 7 3 2 . . 7 5 9 5 5 10 5 8 9 Swap 374 | . 4 5 4 7 4 12 2 2 20 6 6 2 3 18 1 3 17 9 5 10 23 9 8 3 2 9 14 . 17 34 53 20 28 14 Drop 340 | . 8 1 4 3 11 14 2 6 9 . 5 12 2 4 7 3 9 10 3 9 9 3 8 7 . 27 16 27 16 23 44 6 27 5 Fire 748 | 6 80 13 7 7 . 6 . . 3 13 . . 2 9 18 . 17 14 1 35 7 7 9 . 18 44 53 . 27 36 50 21 169 76 Melee 986 | . . . 22 5 7 61 16 20 55 12 24 . 12 47 1 5 43 9 6 22 50 8 2 . 13 22 14 23 81 61 143 30 94 78 Ram . | . . . . . . . . . . . . . . . . . . . . . . . . . . . . . . . . . . . Kick 3 | . . . . . . . . . . . . . . . . . . . . 2 . . . . . . . . 1 . . . . . Crush 14 | . 4 8 . . . . . . 2 . . . . . . . . . . . . . . . . . . . . . . . . . Escape Stasis 11 | . . . . . . . . . . . . . . . . . 1 . . . . . . . . . . . 5 . . 1 4 . Rewire 171 | . . . . . . . 61 . . . . . . . . . 94 . . . . . . . . . 15 . . . . . 1 . Trap . | . . . . . . . . . . . . . . . . . . . . . . . . . . . . . . . . . . . Miscellaneous . | . . . . . . . . . . . . . . . . . . . . . . . . . . . . . . . . . . . Route ------- -11/Scrapyard -10/Materials (discovered 3 exits: *Mat x2 / *Min) -10/Mines (discovered 4 exits: *Mat x2 / [*Exi] / [*Sub]) -9/Materials (discovered 4 exits: *Mat x2 / *Min x2) -9/Mines (discovered 2 exits: *Mat x2) -8/Materials (discovered 2 exits: *Sto x2) -8/Storage (discovered 2 exits: [*Fac] / *Rec) -8/Recycling (discovered 2 exits: *Fac / *Scr) -8/Scraptown (discovered 2 exits: *Fac x2) -6/Factory (discovered 3 exits: Fac / *Low x2) -6/Lower Caves -6/Lower Caves (discovered 2 exits: *Fac / *Zio) -6/Zion -5/Proximity Caves -5/Factory -5/Waste -5/Factory (discovered 4 exits: *Upp x2 / *Ext x2) -5/Extension (discovered 2 exits: *Fac / *Cet) -5/Cetus (discovered 2 exits: *Fac / *Arc) -5/Archives (discovered 2 exits: *Hub x2) -5/Hub_04(d) (discovered 2 exits: *Fac x2) -4/Factory (discovered 2 exits: *Upp x2) -4/Upper Caves -4/Upper Caves -4/Zhirov -3/Proximity Caves -3/Research (discovered 3 exits: *Arm / Tes x2) -3/Armory (discovered 2 exits: *Res / *Lab) -3/Lab -2/Research (discovered 2 exits: *Qua x2) -2/Quarantine (discovered 2 exits: [*Sec] / *Frg) -2/Protoforge -1/Access -1/Command (discovered 3 exits: [*Sur x2] / [*Ac0]) -1/Access_0 Near Former Tau Ceti IV History --------- Turn | Location | Event 7 | -11/Scrapyard | Discovered new exit (range 16) 124 | -11/Scrapyard | Entered Materials 315 | -10/Materials | Build established: Mutant 420 | -10/Materials | Discovered new exit (range 7) 1284 | -10/Materials | Discovered new exit (range 10) 1352 | -10/Materials | Core integrity fell below 50% 1561 | -10/Materials | Discovered new exit (range 7) 1953 | -10/Materials | Lost 3 parts (1p1n1w) 1997 | -10/Materials | Entered Mines 2004 | -10/Mines | Received a Rocket Launcher from a helpful Derelict 2030 | -10/Mines | Received a Mining Laser from a helpful Derelict 2126 | -10/Mines | Discovered new exit (range 15) 2243 | -10/Mines | Discovered new exit (range 13) 2247 | -10/Mines | Assembled infested the area 2311 | -10/Mines | Learned Materials security intel 2407 | -10/Mines | Discovered new exit (range 7) 2611 | -10/Mines | Deemed a non-threat by the Exiles lab entrance 2611 | -10/Mines | Discovered new exit (range 5) 2768 | -10/Mines | Learned 4 Materials zone layouts 3517 | -10/Mines | Entered Materials 3517 | -9/Materials | Evolved 2 slots: Propulsion x1, Utility x1 3518 | -9/Materials | Identified exit to Materials 3729 | -9/Materials | Discovered new exit (range 6) 3793 | -9/Materials | Identified exit to Mines 3927 | -9/Materials | Discovered exit to Materials (range 15) 4382 | -9/Materials | Repaired Lgt. Treads 4407 | -9/Materials | Entered Mines 4473 | -9/Mines | A weapon hastily lodged in a ceiling crevice suddenly fell to the ground 4476 | -9/Mines | Learned Materials non-interactive machine intel 4700 | -9/Mines | Found the Drone Emporium 4708 | -9/Mines | Found Prototype Device 4708 | -9/Mines | Identified Decoy Drone Bay 4875 | -9/Mines | Learned location of Zion (-6) 4921 | -9/Mines | Found a Scrap Suit stashed away for nefarious purposes 5034 | -9/Mines | Discovered exit to Materials (range 16) 5097 | -9/Mines | Discovered exit to Materials (range 5) 5291 | -9/Mines | Entered Materials 5291 | -8/Materials | Evolved 2 slots: Propulsion x1, Utility x1 5292 | -8/Materials | Loaded intel: 28 non-interactive machine locations 5292 | -8/Materials | Discovered new exit (range 16) 5316 | -8/Materials | Identified exit to Storage 5608 | -8/Materials | Entered Storage 5770 | -8/Storage | Build established: Scavenger-Gladiator 6130 | -8/Storage | Learned location of Armory (-3) 6436 | -8/Storage | Discovered new exit (range 12) 6821 | -8/Storage | Used back door to open Recycling access 6821 | -8/Storage | Discovered new exit (range 5) 6828 | -8/Storage | Entered Recycling 7353 | -8/Recycling | Build established: Commander-Gladiator 7501 | -8/Recycling | Discovered new exit (range 8) 7863 | -8/Recycling | Learned 8 Factory zone layouts 7877 | -8/Recycling | Scanned before Scraplab entrance 7901 | -8/Recycling | Entered Scraplab 7916 | -8/Recycling | Identified exit to Scraptown 7959 | -8/Recycling | Learned location of 1 exit from Storage 7991 | -8/Recycling | Learned Storage security intel 8079 | -8/Recycling | Learned Storage emergency access door positions 8110 | -8/Recycling | Entered Scraptown 8110 | -8/Scraptown | Accompanied by 8 allies 8110 | -8/Scraptown | System corruption cleaned by C-Scrubber 8363 | -8/Scraptown | Heard Great Nut preacher, LISTEN AND RECITE! 8515 | -8/Scraptown | Discovered new exit (range 13) 8965 | -8/Scraptown | Visited IN-MT5's Study 9008 | -8/Scraptown | Visited UFD Registry 9008 | -8/Scraptown | Registered with UFD as "Flashmind" 9062 | -8/Scraptown | Visited Derelict Rescue Squad 9107 | -8/Scraptown | Visited Junk Cannon Lab 9147 | -8/Scraptown | Visited Chapter 10 9167 | -8/Scraptown | Visited Analyses Database 9201 | -8/Scraptown | Visited Observation Area 9217 | -8/Scraptown | Visited Science Guys 9270 | -8/Scraptown | Visited Science Testing Area 9295 | -8/Scraptown | Visited Scrap Suit Storage 9323 | -8/Scraptown | Visited Modified Component R&D 9582 | -8/Scraptown | Visited Scrapoid Research Area 9699 | -8/Scraptown | Visited CR-KLE's Repair Center 9710 | -8/Scraptown | CR-KLE repaired 9 parts 10406 | -8/Scraptown | Discovered new exit (range 5) 11049 | -8/Scraptown | Met Optimus 11049 | -8/Scraptown | Accepted into 0bPrime 11449 | -8/Scraptown | Civil war broke out across Scraptown 11461 | -8/Scraptown | Found Thermal Lance 11532 | -8/Scraptown | Lost 17 allies 11601 | -8/Scraptown | Entered Factory 11601 | -6/Factory | Evolved 4 slots: Propulsion x1, Utility x3 11602 | -6/Factory | Identified exit to Factory 11664 | -6/Factory | Identified exit to Lower Caves 11817 | -6/Factory | Fabricated Thunder Leg (x2) 11920 | -6/Factory | Build established: Hacker-Mutant 12271 | -6/Factory | Build established: Scavenger-Mutant 12654 | -6/Factory | Lost 3 parts (2n1u) 12937 | -6/Factory | Build established: Gladiator 13045 | -6/Factory | Loaded intel: 8 recycling unit locations 13248 | -6/Factory | Build established: Hacker-Gladiator 13296 | -6/Factory | Entered Lower Caves 13604 | -6/Lower Caves | Attracted the attention of an 0b10 checkpoint 13746 | -6/Lower Caves | Encountered a Warlord checkpoint 13977 | -6/Lower Caves | Discovered new exit (range 15) 14305 | -6/Lower Caves | Entered another Lower Caves area 14310 | -6/Lower Caves | Discovered exit to Factory (range 9) 14325 | -6/Lower Caves | Learned Factory emergency access door positions 14788 | -6/Lower Caves | Spotted B-75 Beast 15342 | -6/Lower Caves | Discovered new exit (range 7) 15349 | -6/Lower Caves | Entered Zion 15391 | -6/Zion | Discovered new exit (range 15) 15601 | -6/Zion | System corruption cleaned by Quarantine Array 15850 | -6/Zion | Turned away by Imprinter 15900 | -6/Zion | Found CR-A16's Pointy Stick 15973 | -6/Zion | Learned Factory garrison access intel 16100 | -6/Zion | Learned location of Warlord (-5) 16325 | -6/Zion | Found Prototype Processor 16325 | -6/Zion | Identified Spectral Analyzer 16328 | -6/Zion | Found Prototype Processor 16328 | -6/Zion | Identified Exp. Core Analyzer 16334 | -6/Zion | Found Prototype Processor 16334 | -6/Zion | Identified Exp. Signal Interpreter 16389 | -6/Zion | Found Prototype Processor 16389 | -6/Zion | Identified Exp. Armor Integrity Analyzer 16393 | -6/Zion | Found Prototype Processor 16393 | -6/Zion | Identified Exp. Targeting Computer 16802 | -6/Zion | Identified exit to Proximity Caves 16805 | -6/Zion | Entered Proximity Caves 16924 | -5/Proximity Caves | Build established: Derelict-Gladiator 17266 | -5/Proximity Caves | Build established: Mutant 17278 | -5/Proximity Caves | Found DCF Scrap (14 items) 17522 | -5/Proximity Caves | Discovered exit to Factory (range 16) 17581 | -5/Proximity Caves | Build established: Derelict-Mutant 17774 | -5/Proximity Caves | Received a Behemoth hack from an annoying Tinkerer 17942 | -5/Proximity Caves | Entered Factory 17942 | -5/Factory | Evolved 2 slots: Utility x2 17943 | -5/Factory | Identified exit to Extension 17945 | -5/Factory | Loaded intel: 4 garrison access locations 18018 | -5/Factory | Garrison activated, responded to threat 18120 | -5/Factory | Loaded intel: 8 recycling unit locations 18120 | -5/Factory | Learned location of Protoforge (-2) 18229 | -5/Factory | Tech Extrapolator generated special schematic: Deep Structural Scanner 18292 | -5/Factory | Lost 3 parts (2u1w) 18592 | -5/Factory | Lost 3 parts (2n1w) 18803 | -5/Factory | Fabricated Thunder Leg (x2) 18849 | -5/Factory | Sucked down chute 18849 | -5/Factory | Entered Waste 18849 | -5/Waste | The area was eerily silent 18942 | -5/Waste | Found Damper Plating 18996 | -5/Waste | Build established: Hacker-Gladiator 19117 | -5/Waste | Discovered new exit (range 16) 19396 | -5/Waste | Identified exit to Factory 19397 | -5/Waste | Entered Factory 19680 | -5/Factory | Identified exit to Upper Caves 19786 | -5/Factory | Loaded intel: 8 recycling unit locations 19843 | -5/Factory | Entered Extension 20069 | -5/Extension | Rescued a captive Derelict 20082 | -5/Extension | Rescued a captive Derelict 20306 | -5/Extension | Rescued a captive Derelict 20601 | -5/Extension | Spotted B-75 Beast 20632 | -5/Extension | Allies destroyed B-75 Beast 20673 | -5/Extension | Spotted B-75 Beast 20711 | -5/Extension | Lost 3 parts (1n1u1w) 20738 | -5/Extension | Lost 3 allies 20764 | -5/Extension | Rescued A7 20834 | -5/Extension | Allies destroyed B-75 Beast 21043 | -5/Extension | Disrupted transfer network 21163 | -5/Extension | Build established: Scavenger-Gladiator 21323 | -5/Extension | Discovered new exit (range 10) 21324 | -5/Extension | Discovered new exit (range 6) 21348 | -5/Extension | Identified exit to Cetus 21364 | -5/Extension | Entered Cetus 21364 | -5/Cetus | Accompanied by 9 allies (A7) 21369 | -5/Cetus | Acquired a Cetus Manufacturing Module code from A7 21393 | -5/Cetus | Spotted Cetus Guard 21393 | -5/Cetus | Spotted Cetus Guard 21400 | -5/Cetus | Spotted Cetus Guard 21403 | -5/Cetus | Spotted Cetus Guard 21417 | -5/Cetus | Destroyed Cetus Guard 21417 | -5/Cetus | Allies destroyed Cetus Guard 21419 | -5/Cetus | Allies destroyed Cetus Guard 21432 | -5/Cetus | Allies destroyed Cetus Guard 21443 | -5/Cetus | Lost 5 allies 21488 | -5/Cetus | Started Cetus Manufacturing Module 21502 | -5/Cetus | Discovered new exit (range 15) 21513 | -5/Cetus | Manufactured an Enhanced Grunt 21538 | -5/Cetus | Manufactured an Enhanced Grunt 21563 | -5/Cetus | Manufactured an Enhanced Grunt 21588 | -5/Cetus | Manufactured an Enhanced Grunt 21613 | -5/Cetus | Manufactured an Enhanced Grunt 21665 | -5/Cetus | Build established: Scavenger-Mutant 21673 | -5/Cetus | Spotted Cetus Guard 21673 | -5/Cetus | Spotted Cetus Guard 21677 | -5/Cetus | Spotted Cetus Guard 21680 | -5/Cetus | Allies destroyed Cetus Guard 21681 | -5/Cetus | Spotted Cetus Guard 21699 | -5/Cetus | Allies destroyed Cetus Guard 21699 | -5/Cetus | Allies destroyed Cetus Guard 21701 | -5/Cetus | Allies destroyed Cetus Guard 21722 | -5/Cetus | Discovered new exit (range 15) 21725 | -5/Cetus | Lost 4 allies 21730 | -5/Cetus | Met Revision 17 21821 | -5/Cetus | Murdered A7 21825 | -5/Cetus | Extracted ID and sensor layout for unrecognized location from A7's data core 21842 | -5/Cetus | Identified exit to Archives 21843 | -5/Cetus | Entered Archives 21843 | -5/Archives | Accompanied by 4 allies 21911 | -5/Archives | Discovered new exit (range 16) 22046 | -5/Archives | Discovered new exit (range 16) 22062 | -5/Archives | Identified exit to Hub_04(d) 22064 | -5/Archives | Build established: Scavenger-Gladiator 22074 | -5/Archives | Entered Hub_04(d) 22074 | -5/Hub_04(d) | Accompanied by 4 allies 22317 | -5/Hub_04(d) | Network Hub disabled 22379 | -5/Hub_04(d) | Spotted Lightning 22379 | -5/Hub_04(d) | Spotted Lightning 22386 | -5/Hub_04(d) | Network Hub disabled 22393 | -5/Hub_04(d) | Attached CPS modules to Lightning. 22395 | -5/Hub_04(d) | Attached CPS modules to Lightning. 22408 | -5/Hub_04(d) | Destroyed Lightning 22418 | -5/Hub_04(d) | Build established: Scavenger-Mutant 22428 | -5/Hub_04(d) | Destroyed Lightning 22438 | -5/Hub_04(d) | Found Prototype Energy Cannon 22456 | -5/Hub_04(d) | Found Prototype Device 22456 | -5/Hub_04(d) | Identified Exp. Phase Shifter 22463 | -5/Hub_04(d) | Found Prototype Device 22463 | -5/Hub_04(d) | Identified Exp. EM Shield 22468 | -5/Hub_04(d) | Found Prototype Energy Cannon 22472 | -5/Hub_04(d) | Found Exp. Phase Shifter 22504 | -5/Hub_04(d) | Spotted Lightning 22597 | -5/Hub_04(d) | Discovered new exit (range 7) 22748 | -5/Hub_04(d) | Network Hub disabled 22750 | -5/Hub_04(d) | Spotted Lightning 22780 | -5/Hub_04(d) | Spotted Lightning 22783 | -5/Hub_04(d) | Spotted Lightning 22838 | -5/Hub_04(d) | Spotted Lightning 22840 | -5/Hub_04(d) | Spotted Lightning 22840 | -5/Hub_04(d) | Spotted Lightning 22845 | -5/Hub_04(d) | Network Hub disabled 22845 | -5/Hub_04(d) | Discovered new exit (range 6) 22848 | -5/Hub_04(d) | Identified exit to Factory 22850 | -5/Hub_04(d) | Entered Factory 22850 | -4/Factory | Evolved 2 slots: Power x1, Utility x1 22986 | -4/Factory | Identified exit to Upper Caves 23343 | -4/Factory | Garrison activated, responded to threat 23389 | -4/Factory | Found Quantum Capacitor 23569 | -4/Factory | Unchained authorized (6S-H0T) 23643 | -4/Factory | Fabricated Graphene Brace? 23645 | -4/Factory | Identified EMDS (x2) 23924 | -4/Factory | Build established: Scavenger-Gladiator 24164 | -4/Factory | Entered Upper Caves 24293 | -4/Upper Caves | Learned Research stockpile data 24875 | -4/Upper Caves | Spotted B-86 Titan 24917 | -4/Upper Caves | Revealed the true nature of CR-A16's Pointy Stick 24921 | -4/Upper Caves | Destroyed B-86 Titan 25066 | -4/Upper Caves | Found DCF Scrap (13 items) 25159 | -4/Upper Caves | Discovered new exit (range 6) 25164 | -4/Upper Caves | Identified exit to Upper Caves 25166 | -4/Upper Caves | Entered another Upper Caves area 25245 | -4/Upper Caves | Build established: Scavenger-Mutant 25439 | -4/Upper Caves | Discovered new exit (range 12) 25448 | -4/Upper Caves | Identified exit to Zhirov 25678 | -4/Upper Caves | Found DCF Scrap (12 items) 26089 | -4/Upper Caves | Entered Zhirov 26089 | -4/Zhirov | Discovered new exit (range 3) 26108 | -4/Zhirov | Met Zhirov 26127 | -4/Zhirov | Learned location of Command (-1) 26143 | -4/Zhirov | Zhirov requested help retrieving the SGEMP Prototype 26158 | -4/Zhirov | Found Alien Artifact 26158 | -4/Zhirov | Identified Integrated Dissipator 26158 | -4/Zhirov | Installed Integrated Dissipator, increased core heat dissipation (+20) 26222 | -4/Zhirov | Found Alien Artifact 26260 | -4/Zhirov | Identified exit to Proximity Caves 26264 | -4/Zhirov | Entered Proximity Caves 26266 | -3/Proximity Caves | Attracted the attention of an 0b10 checkpoint 26932 | -3/Proximity Caves | Discovered new exit (range 8) 26939 | -3/Proximity Caves | Identified exit to Research 26961 | -3/Proximity Caves | Entered Research 26961 | -3/Research | Evolved 2 slots: Power x1, Utility x1 27161 | -3/Research | Revision forces began assault on 0b10 27245 | -3/Research | Met up with Revision 17++ 27276 | -3/Research | Identified exit to Armory 27276 | -3/Research | Identified exit to Testing 27288 | -3/Research | Found Prototype Device 27288 | -3/Research | Identified Exp. Thermal Shield 27318 | -3/Research | Loaded intel: 5 recycling unit locations 27661 | -3/Research | Research terminal network offline 27855 | -3/Research | Central database locked down 28103 | -3/Research | Repaired Hvy. Armored Exoskeleton 28158 | -3/Research | Repaired Centrium Medium Armor Plating 28304 | -3/Research | Found Fusion Bomb Launcher 28348 | -3/Research | Spotted Striker 28355 | -3/Research | Destroyed Striker 28358 | -3/Research | Spotted Executioner 28361 | -3/Research | Destroyed Executioner 28400 | -3/Research | Entered Armory 28434 | -3/Armory | Spotted B-86 Titan 28439 | -3/Armory | Befriended a Behemoth using the annoying Tinkerer's hack 28563 | -3/Armory | Destroyed 8 combat bots 28833 | -3/Armory | Identified Transdimensional Reconstructor 28833 | -3/Armory | Warped through subspace to slip node 28833 | -3/Armory | Discovered new exit (range 1) 28833 | -3/Armory | Identified exit to Lab 28950 | -3/Armory | Discovered new exit (range 4) 28958 | -3/Armory | Identified exit to Research 29029 | -3/Armory | Fabricated Mak. Sensor Array (x1) 29116 | -3/Armory | Repaired Centrium Medium Armor Plating? 29123 | -3/Armory | Unchained authorized (6S-H0T) 29262 | -3/Armory | Lost 4 allies 29281 | -3/Armory | Entered Lab 29338 | -3/Lab | Discovered exit to Research (range 8) 29387 | -3/Lab | Hidden lab's door opened automatically 29387 | -3/Lab | Sensor layout match revealed 29388 | -3/Lab | Gained access to the hidden lab's interior 29402 | -3/Lab | Build established: Hacker-Mutant 29422 | -3/Lab | Found Alien Artifact 29422 | -3/Lab | Identified Core Regenerator 29422 | -3/Lab | Used Core Regenerator, restored core integrity (+171) 29430 | -3/Lab | Found Alien Artifact 29430 | -3/Lab | Identified Integrated Reactor 29430 | -3/Lab | Installed Integrated Reactor, increased core energy generation (+10) 29442 | -3/Lab | Found Transdimensional Reconstructor 31414 | -3/Lab | Found Prototype Hackware 31416 | -3/Lab | Found Prototype Protection 31418 | -3/Lab | Found Prototype Energy Cannon 31537 | -3/Lab | Identified Quantum Router 31544 | -3/Lab | Found Alien Artifact 32069 | -3/Lab | Entered Research 32069 | -2/Research | Evolved 2 slots: Propulsion x1, Utility x1 32070 | -2/Research | Identified exit to Quarantine 32105 | -2/Research | Loaded intel: 5 recycling unit locations 32282 | -2/Research | Found Adv. Powered Armor 32285 | -2/Research | Found Adv. Powered Armor 32287 | -2/Research | Identified Med. Regenerative Plating 32289 | -2/Research | Found Adv. Powered Armor 32407 | -2/Research | Unchained authorized (CL-0N3) 32673 | -2/Research | Fabricated Deep Structural Scanner (x1) 32707 | -2/Research | K-01 Serf reconstituted as Combat Programmer 32707 | -2/Research | Spotted Combat Programmer 32708 | -2/Research | Identified Warp Cannon 32710 | -2/Research | Destroyed Combat Programmer 32710 | -2/Research | Combat Programmer reconstituted as CL-0N3 33017 | -2/Research | Build established: Scavenger-Mutant 33040 | -2/Research | Found Prototype Device 33040 | -2/Research | Identified Exp. Shield Generator 33048 | -2/Research | Found Exp. Shield Generator 33054 | -2/Research | Found Faulty Exp. Shield Generator 33071 | -2/Research | A-15 Conveyor reconstituted as Access Guard 33074 | -2/Research | Spotted Access Guard 33090 | -2/Research | System corruption reached 10% 33177 | -2/Research | Lost 8 parts (1p1n6u) 33209 | -2/Research | Destroyed Access Guard 33209 | -2/Research | Access Guard reconstituted as CL-0N3 33287 | -2/Research | Entered Quarantine 33437 | -2/Quarantine | Found Alien Artifact 33479 | -2/Quarantine | Found Alien Reactor 33508 | -2/Quarantine | Found Alien Slashing Weapon 33508 | -2/Quarantine | Identified Sigix Broadsword 33619 | -2/Quarantine | Central database locked down 33619 | -2/Quarantine | Identified Core Reset Matrix 33650 | -2/Quarantine | Found Alien Artifact 33690 | -2/Quarantine | Discovered new exit (range 14) 33712 | -2/Quarantine | Cryocooling Duct disabled 33727 | -2/Quarantine | Ambient heat levels rising (+20) 33727 | -2/Quarantine | Non-combat units ordered to evacuate 33798 | -2/Quarantine | Unchained authorized (CL-0N3) 33822 | -2/Quarantine | Build established: Scavenger-Gladiator 34032 | -2/Quarantine | Destroyed Fortress 34049 | -2/Quarantine | Found Prototype Reactor 34049 | -2/Quarantine | Identified Vortex Chain Reactor 34053 | -2/Quarantine | Found Exp. EM Shield 34177 | -2/Quarantine | Discovered new exit (range 6) 34177 | -2/Quarantine | Discovered new exit (range 7) 34186 | -2/Quarantine | Identified Subatomic Replicator 34186 | -2/Quarantine | Identified Terrabomb 34186 | -2/Quarantine | Used Core Reset Matrix 34190 | -2/Quarantine | Detected hypermatrix surge 34190 | -2/Quarantine | Sensed 14 artifacts in vicinity 34210 | -2/Quarantine | P-80 Master reconstituted as Combat Programmer 34211 | -2/Quarantine | Spotted Combat Programmer 34226 | -2/Quarantine | Build established: Scavenger-Mutant 34247 | -2/Quarantine | Destroyed Combat Programmer 34247 | -2/Quarantine | Combat Programmer reconstituted as CL-0N3 34512 | -2/Quarantine | Found Dimensional Node Initializer 34630 | -2/Quarantine | Found Core Stripper 34650 | -2/Quarantine | Build established: Hacker-Mutant 34670 | -2/Quarantine | P-80 Master reconstituted as Access Guard 34670 | -2/Quarantine | Spotted Access Guard 34780 | -2/Quarantine | Destroyed Access Guard 34780 | -2/Quarantine | Access Guard reconstituted as CL-0N3 34803 | -2/Quarantine | Lost 7 parts (2p1n3u1w) 34859 | -2/Quarantine | Found Core Reset Matrix 34862 | -2/Quarantine | Sensed 11 artifacts in vicinity 34927 | -2/Quarantine | Found Unknown Protection 34927 | -2/Quarantine | Identified Hvy. Insulated Plating 34986 | -2/Quarantine | Build established: Scavenger-Mutant 35006 | -2/Quarantine | Discovered new exit (range 8) 35007 | -2/Quarantine | Discovered new exit (range 6) 35016 | -2/Quarantine | Entered Protoforge 35017 | -2/Protoforge | Sensed 2 artifacts in vicinity 35158 | -2/Protoforge | Spotted Hotshot 35158 | -2/Protoforge | Spotted Hotshot 35188 | -2/Protoforge | Destroyed Hotshot 35225 | -2/Protoforge | Superfortress began startup sequence 35259 | -2/Protoforge | Destroyed Hotshot 35295 | -2/Protoforge | Discovered new exit (range 18) 35323 | -2/Protoforge | Initialized slip node 35470 | -2/Protoforge | Spotted Hotshot 35476 | -2/Protoforge | Spotted Hotshot 35485 | -2/Protoforge | Destroyed Hotshot 35497 | -2/Protoforge | Destroyed Hotshot 35515 | -2/Protoforge | Used Terrabomb 35515 | -2/Protoforge | Additional patrols dispatched to research labs 35527 | -2/Protoforge | Lost 3 parts (3u) 35552 | -2/Protoforge | Found Prototype Device 35559 | -2/Protoforge | Found Cep. Chromion Battery 35562 | -2/Protoforge | Found Cep. Chromion Battery 35581 | -2/Protoforge | Spotted Decapitator 35584 | -2/Protoforge | Spotted Decapitator 35594 | -2/Protoforge | Destroyed Decapitator 35599 | -2/Protoforge | Destroyed Decapitator 35699 | -2/Protoforge | Spotted Immortal 35702 | -2/Protoforge | Spotted Decapitator 35702 | -2/Protoforge | Spotted Decapitator 35702 | -2/Protoforge | Spotted Decapitator 35702 | -2/Protoforge | Spotted Decapitator 35708 | -2/Protoforge | Destroyed Decapitator 35711 | -2/Protoforge | Destroyed Decapitator 35711 | -2/Protoforge | Destroyed Decapitator 35719 | -2/Protoforge | Destroyed Decapitator 35730 | -2/Protoforge | Identified Crosscalibrator 35802 | -2/Protoforge | Destroyed Immortal 35807 | -2/Protoforge | Found Prototype Piercing Weapon 35817 | -2/Protoforge | Identified Exp. Jetlance 35837 | -2/Protoforge | Found Prototype Power Core 35837 | -2/Protoforge | Identified Cep. Zero-point Core 35855 | -2/Protoforge | Found Faulty Cep. Zero-point Core 35861 | -2/Protoforge | Found Cep. Zero-point Core 36115 | -2/Protoforge | Build established: Scavenger-Gladiator 36167 | -2/Protoforge | Spotted Decapitator 36170 | -2/Protoforge | Spotted Decapitator 36170 | -2/Protoforge | Spotted V897-i 36172 | -2/Protoforge | Spotted Decapitator 36235 | -2/Protoforge | Found Prototype Storage 36235 | -2/Protoforge | Identified Cep. Antigrav Storage Unit 36252 | -2/Protoforge | Found Cep. Matter Streamer 36255 | -2/Protoforge | Found Cep. Chromion Battery 36289 | -2/Protoforge | Destroyed Decapitator 36293 | -2/Protoforge | Destroyed Decapitator 36302 | -2/Protoforge | Destroyed Decapitator 36304 | -2/Protoforge | Core integrity fell below 50% 36346 | -2/Protoforge | Lost 5 parts (1p1n2u1w) 36575 | -2/Protoforge | Spotted V168-n 36594 | -2/Protoforge | Destroyed V168-n 36663 | -2/Protoforge | Found Faulty Cep. Disintegration Ray 36682 | -2/Protoforge | Found Faulty Cep. Disintegration Ray 36686 | -2/Protoforge | Found Cep. Plasma Driver 36738 | -2/Protoforge | Found Exp. Jetlance 36857 | -2/Protoforge | Spotted Decapitator 36881 | -2/Protoforge | Destroyed Decapitator 36889 | -2/Protoforge | Spotted Decapitator 36889 | -2/Protoforge | Spotted Decapitator 36893 | -2/Protoforge | Spotted Decapitator 36895 | -2/Protoforge | Destroyed Decapitator 36900 | -2/Protoforge | Destroyed Decapitator 37080 | -2/Protoforge | Scanned by Researcher 37114 | -2/Protoforge | Found Cep. RG22 Armor 37129 | -2/Protoforge | Found Prototype Device 37129 | -2/Protoforge | Identified Cep. Hardlight Director 37133 | -2/Protoforge | Found Exp. Force Field 37138 | -2/Protoforge | Found Faulty Cep. Phase Shift Module 37188 | -2/Protoforge | Spotted Hotshot 37200 | -2/Protoforge | Destroyed Hotshot 37208 | -2/Protoforge | Spotted Hotshot 37215 | -2/Protoforge | Destroyed Hotshot 37218 | -2/Protoforge | Spotted Immortal 37305 | -2/Protoforge | Found Prototype Device 37305 | -2/Protoforge | Identified Cep. Recoil Nullifier 37308 | -2/Protoforge | Found Prototype Device 37308 | -2/Protoforge | Identified Exp. Kinecellerator 37322 | -2/Protoforge | Found Prototype Device 37322 | -2/Protoforge | Identified Femtoactuators 37326 | -2/Protoforge | Found Femtoactuators 37341 | -2/Protoforge | Found Cep. Weapon Articulator 37392 | -2/Protoforge | Destroyed AP7-3 37400 | -2/Protoforge | Destroyed AP7-3 37430 | -2/Protoforge | Found Prototype Processor 37430 | -2/Protoforge | Identified Exp. Targeting Computer 37444 | -2/Protoforge | Found Faulty Cep. Cloak Mesh 37446 | -2/Protoforge | Found Cep. Cloak Mesh 37449 | -2/Protoforge | Found Prototype Impact Weapon 37449 | -2/Protoforge | Identified Cep. Blasthammer 37452 | -2/Protoforge | Found Cep. Blasthammer 37640 | -2/Protoforge | Found Transdimensional Reconstructor 37648 | -2/Protoforge | Warped through subspace to slip node 37650 | -2/Protoforge | Found Prototype Device 37655 | -2/Protoforge | Spotted Hotshot 37655 | -2/Protoforge | Spotted Hotshot 37657 | -2/Protoforge | Entered Access 37657 | -1/Access | Evolved 2 slots: Utility x1, Weapon x1 37658 | -1/Access | Sensed 1 artifact in vicinity 37829 | -1/Access | Unchained authorized (QV-33N) 37852 | -1/Access | Loaded intel: 4 recycling unit locations 37904 | -1/Access | Identified exit to Command 37946 | -1/Access | Build established: Alien-Gladiator 38101 | -1/Access | Spotted B-99 Colossus 38106 | -1/Access | Destroyed B-99 Colossus 38157 | -1/Access | First assault squad dispatched 38161 | -1/Access | Spotted B-99 Colossus 38189 | -1/Access | Destroyed B-99 Colossus 38212 | -1/Access | Entered Command 38632 | -1/Command | Destroyed M Guard 38657 | -1/Command | Spotted Combat Programmer 38660 | -1/Command | Spotted Combat Programmer 38660 | -1/Command | Destroyed Combat Programmer 38672 | -1/Command | Destroyed Combat Programmer 38691 | -1/Command | Spotted M Guard 38693 | -1/Command | Destroyed M Guard 38693 | -1/Command | All MAIN.C guards destroyed 38749 | -1/Command | Destroyed 8 combat bots 38763 | -1/Command | Found Prototype Reactor 38763 | -1/Command | Identified Zero-point Reactor 38767 | -1/Command | Found Zero-point Reactor 38770 | -1/Command | Found Prototype Device 38770 | -1/Command | Identified AEGIS Remote Shield 38873 | -1/Command | Scrapoid reinforcements arrived 38884 | -1/Command | Build established: Scavenger-Gladiator 38972 | -1/Command | Met MAIN.C 38978 | -1/Command | 0b10 Conduit disabled 38991 | -1/Command | Destroyed MAIN.C Shell 38993 | -1/Command | MAIN.C activated Command garrisons 39025 | -1/Command | Destroyed MAIN.C 39027 | -1/Command | Identified Cep. Navigation Harness 39027 | -1/Command | Discovered new exit (range 34) 39027 | -1/Command | Discovered new exit (range 98) 39027 | -1/Command | Extracted map data and part IDs from MAIN.C's data core 39030 | -1/Command | Found Exp. Powered Armor 39034 | -1/Command | Found Exp. Powered Armor 39039 | -1/Command | Lost 3 allies 39377 | -1/Command | Spotted B-99 Colossus 39499 | -1/Command | Found Exp. System Purifier 39855 | -1/Command | Found Exp. Armor Integrity Analyzer 40349 | -1/Command | Found Exp. Core Analyzer 41545 | -1/Command | Crushed by falling debris 41837 | -1/Command | Warped through subspace to slip node 41837 | -1/Command | Discovered new exit (range 4) 41840 | -1/Command | Found Perforator 41844 | -1/Command | Entered Access_0 41845 | -1/Access_0 | Sensed 2 artifacts in vicinity 41845 | -1/Access_0 | Met Architect 41855 | -1/Access_0 | Destroyed A8 41859 | -1/Access_0 | Architect warped through subspace 41909 | -1/Access_0 | Architect warped through subspace 41940 | -1/Access_0 | Subspace Access Node disabled 41956 | -1/Access_0 | Architect warped through subspace 41999 | -1/Access_0 | Architect warped through subspace 42019 | -1/Access_0 | Architect warped through subspace 42037 | -1/Access_0 | Architect warped through subspace 42071 | -1/Access_0 | Architect warped through subspace 42090 | -1/Access_0 | Architect warped through subspace 42096 | -1/Access_0 | A6 warped into view 42108 | -1/Access_0 | Destroyed A6 42133 | -1/Access_0 | Subspace Access Node disabled 42142 | -1/Access_0 | Architect warped through subspace 42197 | -1/Access_0 | Architect warped through subspace 42242 | -1/Access_0 | Architect warped through subspace 42289 | -1/Access_0 | Architect warped through subspace 42346 | -1/Access_0 | Architect warped through subspace 42415 | -1/Access_0 | Found Exp. Phase Shifter 42459 | -1/Access_0 | Architect warped through subspace 42484 | -1/Access_0 | Subspace Access Node disabled 42508 | -1/Access_0 | Architect warped through subspace 42514 | -1/Access_0 | A5 warped into view 42514 | -1/Access_0 | Subspace Access Node disabled 42536 | -1/Access_0 | Destroyed A5 42577 | -1/Access_0 | Destroyed Architect 42578 | -1/Access_0 | Architect triggered a singularity event 42579 | -1/Access_0 | Found Hpw. Transdimensional Reconstructor 42579 | -1/Access_0 | Warped through subspace to slip node 42579 | -1/Access_0 | Discovered new exit (range 8) 42586 | *** | Escaped singularity! Last Messages --------------- 42573_ Quantum Shear penetrates Wall. 42573_ Penetrated by Quantum Shear. 42573_ Architect suffers critical hit (Impale). 42575_ Exp. Jetlance follow-up attack on Architect. 42577_ Architect: "If I can't win, no one wins!" 42577_ Architect destroyed. 42578_ A0_COM: Initiating irreversible singularity event. Goodbye. 42579_ A0_COM: 10. 42579_ Acquired Hpw. Transdimensional Reconstructor. 42579_ Warped through subspace, drawn to slip node. 42579_ EXIT=FOUND 42580_ A0_COM: 9. 42581_ A0_COM: 8. 42582_ A0_COM: 7. 42583_ A0_COM: 6. 42584_ A0_COM: 5. 42585_ A0_COM: 4. 42586_ A0_COM: 3. [Achievement: 75k Club] [Achievement: Renaissance Bot] Map ----- +----------------------------------------------------+ | | | | | | | | | | | | | | | | | | | | | | | | | | | | | | | | | ?????????????????????????????????????????????????? | | ?????????????????????????????????????????????????? | | ?????????????????????????????????????????????????? | | ?????????????????????????????????????????????????? | | ?????????????????????????????????????????????????? | | ?????????????????????????????????????????????????? | | ????????????????????????###??????????????????????? | | ???????????????????????## ##?????????????????????? | | ???????????????????????# #?????????????????????? | | ???????????????????????# @ #?????????????????????? | | ??????????????????????## #?????????????????????? | | ??????????????????????# #?????????????????????? | | ??????????????????????# ##?????????????????????? | | ??????????????????????## #?????????????????????? | | ??????????????????????# #?????????????????????? | | ??????????????????????# ##?????????????????????? | | ??????????????????????# < #?????????????????????? | | ??????????????????????# ##?????????????????????? | | ??????????????????????## #??????????????????????? | | ???????????????????????####??????????????????????? | | ?????????????????????????????????????????????????? | | ?????????????????????????????????????????????????? | | ?????????????????????????????????????????????????? | | ?????????????????????????????????????????????????? | | ?????????????????????????????????????????????????? | | ?????????????????????????????????????????????????? | | ?????????????????????????????????????????????????? | | ?????????????????????????????????????????????????? | | ?????????????????????????????????????????????????? | | ?????????????????????????????????????????????????? | | ?????????????????????????????????????????????????? | | ?????????????????????????????????????????????????? | | ?????????????????????????????????????????????????? | | ?????????????????????????????????????????????????? | +----------------------------------------------------+ Best States ------------- Heat Dissipation 121 Coolant Potential 100 Energy Generation 99 Energy Capacity 3500 Matter Stores 300 Matter Capacity 300 Sight Range 16 Robot Scan Range 19 Terrain Scan Density 10 Jamming Range 16 Cloak Strength 9 EM Shielding 4 Armor Coverage 1600 Resistance: KI 30 Resistance: TH 30 Resistance: EM 90 Propulsion Shielding 90 Utility Shielding 66 Weapon Shielding 90 Melee Speed Boost 50 Phase Shifting 20 Evasion (%) 89 Targeting Accuracy 30 Melee Accuracy 8 Target Analysis 8 Core Analysis 11 Armor Integrity Analysis 50 Recoil Reduction 4 Energy Filtering 50 Salvage Targeting 4 Offensive Hacking 34 Defensive Hacking 25 Authchip Count 3 Item Schematics ----------------- Hvy. Shield Leg | -2/Protoforge | Hacked Enh. Force Rifle | -2/Protoforge | Archive Adv. Myomer Leg | -2/Protoforge | Archive Enh. Armored Medium Treads | -2/Protoforge | Archive Lgt. Antimatter Cannon | -2/Protoforge | Archive Cld. Linear Gravjet | -2/Protoforge | Archive Exp. Matter Compressor | -2/Protoforge | Archive Imp. Diametric Drive | -2/Protoforge | Archive Cld. Q-thruster | -2/Protoforge | Archive Adv. Micro-nuke Launcher | -2/Protoforge | Archive Robot Schematics ------------------ O-32 Director | -2/Protoforge | Archive R-06 Scavenger | -2/Protoforge | Archive K-01 Serf | -2/Protoforge | Archive Fabricated ------------ Thunder Leg | x2 | -6/Factory | Preloaded Thunder Leg | x2 | -5/Factory | Authchip Graphene Brace | x2 | -4/Factory Mak. Sensor Array | x1 | -3/Armory | Authchip Deep Structural Scanner | x1 | -2/Research Repaired ---------- Lgt. Treads | 15% | -9/Materials Hvy. Armored Exoskeleton | 53% | -3/Research Centrium Medium Armor Plating | 30% | -3/Research Centrium Medium Armor Plating | 6% | -3/Armory Studied --------- None Alien Tech Used ----------------- Integrated Dissipator Transdimensional Reconstructor Core Regenerator Integrated Reactor Sigix Broadsword Core Reset Matrix Core Stripper Dimensional Node Initializer Terrabomb High-powered Transdimensional Reconstructor Achievements -------------- 75k Club All Kinds Of Bad News Anti-science Crusade Pyromaniac Renaissance Bot Tailor-made That Tickles The Robot, The Myth, The Legend Well-fed Force Field Challenges ------------ None Game ------ Seed ActuatorRainbowSlayer Manual? 0 Play Time 06:55:45 Cumulative 861.0 hours Start 2025.10.10 @ 21:45:49 End 2025.10.11 @ 17:04:07 Sessions 5 Manual Loads 0 Difficulty Rogue Special Mode None Game No. 797 Rogue 710 Adventurer 87 Explorer 0 Win Type 6 Total 56 Types 9/3/31/2/1/1/5/1/1/2 Lore% 97 Gallery% 92 Achievement% 59 Wizard Run 0 Options --------- Layout 0 ASCII 0 Keyboard 1 Movement Numpad Keybinds 0 Fullscreen 2 Font 18/SmallcapsGlow Map View 76x50 Zoom Use 0% Tactical HUD 1 Map Filters NONE Filters NONE Steam 1 RUN: 8c40b9b3-9488-4e47-a4dd-07700b9fb5af